Department Family,Entity,Transaction Date,Expense Type,Expense Area,Supplier Name,Transaction Number,Amount,VAT Registration Number
DFID,DFID,01/07/2010,Aid to civil society organisations / NGOs,West and Southern Africa,CARE INTERNATIONAL,400106253,298033.34,
DFID,DFID,01/07/2010,Aid to civil society organisations / NGOs,Policy and Research Directorate,Triple Line Consulting Limited,400106282,142007.09,
DFID,DFID,01/07/2010,Aid to civil society organisations / NGOs,Policy and Research Directorate,IBON FOUNDATION INC,400106267,38000,
DFID,DFID,01/07/2010,Aid to international organisations,Policy and Research Directorate,IBRD (HSBC)  C/O THE WORLD BANK,400106221,1000000,
DFID,DFID,01/07/2010,FCO Post Account,Asia Division,FOREIGN AND COMMONWEALTH OFFICE,400106216,393.63,
DFID,DFID,01/07/2010,FCO Post Account,Asia Division,FOREIGN AND COMMONWEALTH OFFICE,400106216,14062.58,
DFID,DFID,01/07/2010,FCO Post Account,West and Southern Africa,FOREIGN AND COMMONWEALTH OFFICE,400106216,141.23,
DFID,DFID,01/07/2010,FCO Post Account,Asia Division,FOREIGN AND COMMONWEALTH OFFICE,400106216,19207.42,
DFID,DFID,01/07/2010,Aid to civil society organisations / NGOs,West and Southern Africa,G-RAP,400106328,350000,
DFID,DFID,01/07/2010,Aid to partner government,West and Southern Africa,THE CROWN AGENTS,400106340,69000,
DFID,DFID,01/07/2010,Technical & Advisory services,Policy and Research Directorate,OXFORD POLICY MANAGEMENT,400106325,27947.66,
DFID,DFID,01/07/2010,Technical & Advisory services,Policy and Research Directorate,PRICEWATERHOUSECOOPERS,400106435,168370.23,
DFID,DFID,01/07/2010,Aid to international organisations,International Finance Division,International Monetary Fund (GBP),400106486,13200000,
DFID,DFID,01/07/2010,FCO Post Account,Business Solutions Division Level,FOREIGN AND COMMONWEALTH OFFICE,400106216,1242.27,
DFID,DFID,01/07/2010,FCO Post Account,International Relations Division,FOREIGN AND COMMONWEALTH OFFICE,400106216,2095.25,
DFID,DFID,01/07/2010,Aid to international organisations,Asia Division,WYG INTERNATIONAL LIMITED,400106304,30417.48
DFID,DFID,01/07/2010,Technical & Advisory services,West and Southern Africa,THE CROWN AGENTS,400106341,9035.06
DFID,DFID,01/07/2010,Medical & Health Supplies/Services,West and Southern Africa,THE CROWN AGENTS,400106341,279723.08
DFID,DFID,01/07/2010,Aid to civil society organisations / NGOs,Communications Division,INTERNATIONAL BROADCASTING TRUST,400106233,56708
DFID,DFID,01/07/2010,Aid to civil society organisations / NGOs,Communications Division,ONE WORLD NETWORK NORTH EAST,400106240,39820
DFID,DFID,01/07/2010,Technical & Advisory services,Western Asia and Stabilisation Division,HTSPE LTD,400106404,49211.01
DFID,DFID,01/07/2010,Aid to civil society organisations / NGOs,Policy and Research Directorate,PANOS LONDON,400106283,490000
DFID,DFID,01/07/2010,Technical & Advisory services,International Finance Division,WSP INTERNATIONAL LIMITED,400106338,27295.82
DFID,DFID,01/07/2010,Aid to civil society organisations / NGOs,Policy and Research Directorate,THE DEVELOPMENT STUDIES ASSOCIATION,400106339,47564.39
DFID,DFID,01/07/2010,Aid to civil society organisations / NGOs,Policy and Research Directorate,WELLCOME TRUST,400106229,71705.21
DFID,DFID,01/07/2010,FCO Post Account,International Relations Division,FOREIGN AND COMMONWEALTH OFFICE,400106216,-562.07
DFID,DFID,01/07/2010,Aid to international organisations,West and Southern Africa,WHO (GENEVA),400106457,90000
DFID,DFID,01/07/2010,Technical & Advisory services,East and Central Africa,ADAM SMITH INTERNATIONAL  LTD,400106289,143925.67
DFID,DFID,01/07/2010,Technical & Advisory services,East and Central Africa,ADAM SMITH INTERNATIONAL  LTD,400106293,201364.33
DFID,DFID,01/07/2010,Technical & Advisory services,East and Central Africa,ADAM SMITH INTERNATIONAL  LTD,400106293,4624.96
DFID,DFID,01/07/2010,FCO Post Account,International Relations Division,FOREIGN AND COMMONWEALTH OFFICE,400106216,491.82
DFID,DFID,01/07/2010,Aid to international organisations,Asia Division,UNDP CONTRIBUTIONS GBP,400106316,125000
DFID,DFID,02/07/2010,Aid to civil society organisations / NGOs,East and Central Africa,International Food PolicyResearch Institute (IFRI,400106396,34776.17
DFID,DFID,02/07/2010,Research & Development,Policy and Research Directorate,NRI LTD.,400106407,490336.69
DFID,DFID,02/07/2010,Donor Replenishment of funding,International Finance Division,ASIAN DEVELOPMENT FUND,400106487,784000
DFID,DFID,02/07/2010,Donor Replenishment of funding,International Finance Division,ASIAN DEVELOPMENT FUND,400106489,4537000
DFID,DFID,02/07/2010,Donor Replenishment of funding,International Finance Division,ASIAN DEVELOPMENT FUND,400106491,1922000
DFID,DFID,02/07/2010,Office Equipment,Asia Division,THE CROWN AGENTS,400106459,30053.42
DFID,DFID,02/07/2010,Aid to international organisations,Asia Division,UNDP CONTRIBUTIONS GBP,400106490,41250
DFID,DFID,02/07/2010,Accomodation costs,Policy and Research Directorate,JAT Constroi,400106413,455.23
DFID,DFID,02/07/2010,Technical & Advisory services,Policy and Research Directorate,THE POLICY PRACTICE LTD,400106475,52117.51
DFID,DFID,02/07/2010,Research & Development,Policy and Research Directorate,Crown Agents Bank,400106559,495093.28
DFID,DFID,02/07/2010,Accomodation costs,Policy and Research Directorate,JAT Constroi,400106413,182.09
DFID,DFID,02/07/2010,Emergency / Humanitarian Assistance,"Security & Humanitarian, Middle East, Caribbean & Overseas Territories Division",BRITISH RED CROSS,400106422,100000
DFID,DFID,02/07/2010,Accomodation costs,West and Southern Africa,JAT Constroi,400106413,910.46
DFID,DFID,02/07/2010,Accomodation costs,West and Southern Africa,JAT Constroi,400106413,10925.53
DFID,DFID,02/07/2010,Accomodation costs,West and Southern Africa,JAT Constroi,400106413,18482.35
DFID,DFID,02/07/2010,Technical & Advisory services,West and Southern Africa,HEALTH PARTNERS INTERNATIONAL,400106504,285274.06
DFID,DFID,02/07/2010,Accomodation costs,Human Resources Division,CITY OF WESTMINSTER,400106472,35000
DFID,DFID,02/07/2010,Aid to civil society organisations / NGOs,Policy and Research Directorate,INTERNATIONAL HIV/AIDS ALLIANCE,400106388,925000
DFID,DFID,02/07/2010,Technical & Advisory services,Western Asia and Stabilisation Division,THE CROWN AGENTS,400106443,71850.08
DFID,DFID,02/07/2010,Aid to other bilateral donors,West and Southern Africa,UNICEF,400106446,1500000
DFID,DFID,02/07/2010,Technical & Advisory services,East and Central Africa,COFFEY INTERNATIONAL DEVELOPMENT LTD,400106691,88068.18
DFID,DFID,02/07/2010,Technical & Advisory services,East and Central Africa,MAXWELL STAMP PLC,400106476,90519.67
DFID,DFID,02/07/2010,Aid to international organisations,Asia Division,UNDP CONTRIBUTIONS GBP,400106376,450000
DFID,DFID,05/07/2010,"Property Repairs, Maintenance & Alterations",Human Resources Division,MILLER ROOFING LTD,400107080,63730.18
DFID,DFID,05/07/2010,Technical & Advisory services,Policy and Research Directorate,TRIPLE LINE CONSULTING LTD,400106599,94839.62
DFID,DFID,05/07/2010,FCO Post Account,Western Asia and Stabilisation Division,FOREIGN AND COMMONWEALTH OFFICE,400106693,2.94
DFID,DFID,05/07/2010,Technical & Advisory services,Business Solutions Division Level,TRIBAL CONSULTING,400106625,32452
DFID,DFID,05/07/2010,Aid to international organisations,Asia Division,IBRD HSBC T,400106607,500000
DFID,DFID,05/07/2010,Aid to international organisations,Asia Division,IBRD HSBC T,400106614,2050000
DFID,DFID,05/07/2010,Aid to international organisations,Asia Division,IBRD HSBC T,400106615,1750000
DFID,DFID,05/07/2010,Technical & Advisory services,Asia Division,MAXWELL STAMP PLC,400106657,238093.71
DFID,DFID,05/07/2010,Technical & Advisory services,Asia Division,MAXWELL STAMP PLC,400106657,-125303.85
DFID,DFID,05/07/2010,Technical & Advisory services,Asia Division,TRIBAL HELM CORPORATION LTD,400107061,50659.23
DFID,DFID,05/07/2010,Technical & Advisory services,Asia Division,TRIBAL HELM CORPORATION LTD,400107082,167617.61
DFID,DFID,05/07/2010,Technical & Advisory services,International Relations Division,COFFEY INTERNATIONAL DEVELOPMENT LTD,400106819,62305.28
DFID,DFID,05/07/2010,Technical & Advisory services,International Relations Division,COFFEY INTERNATIONAL DEVELOPMENT LTD,400106831,53641.59
DFID,DFID,05/07/2010,FCO Post Account,Asia Division,FOREIGN AND COMMONWEALTH OFFICE,400106693,27.59
DFID,DFID,05/07/2010,FCO Post Account,Asia Division,FOREIGN AND COMMONWEALTH OFFICE,400106654,2586.34
DFID,DFID,05/07/2010,FCO Post Account,Asia Division,FOREIGN AND COMMONWEALTH OFFICE,400106654,1241.38
DFID,DFID,05/07/2010,FCO Post Account,Asia Division,FOREIGN AND COMMONWEALTH OFFICE,400106693,3669.98
DFID,DFID,05/07/2010,FCO Post Account,Asia Division,FOREIGN AND COMMONWEALTH OFFICE,400106654,1738.57
DFID,DFID,05/07/2010,FCO Post Account,Asia Division,FOREIGN AND COMMONWEALTH OFFICE,400106693,1653.62
DFID,DFID,05/07/2010,FCO Post Account,Asia Division,FOREIGN AND COMMONWEALTH OFFICE,400106654,130.42
DFID,DFID,05/07/2010,FCO Post Account,West and Southern Africa,FOREIGN AND COMMONWEALTH OFFICE,400106693,3395.74
DFID,DFID,05/07/2010,FCO Post Account,Asia Division,FOREIGN AND COMMONWEALTH OFFICE,400106693,1849.06
DFID,DFID,05/07/2010,FCO Post Account,East and Central Africa,FOREIGN AND COMMONWEALTH OFFICE,400106654,404.06
DFID,DFID,05/07/2010,FCO Post Account,East and Central Africa,FOREIGN AND COMMONWEALTH OFFICE,400106693,303.13
DFID,DFID,05/07/2010,FCO Post Account,West and Southern Africa,FOREIGN AND COMMONWEALTH OFFICE,400106654,181.88
DFID,DFID,05/07/2010,FCO Post Account,Western Asia and Stabilisation Division,FOREIGN AND COMMONWEALTH OFFICE,400106654,134.58
DFID,DFID,05/07/2010,FCO Post Account,East and Central Africa,FOREIGN AND COMMONWEALTH OFFICE,400106654,693.66
DFID,DFID,05/07/2010,FCO Post Account,West and Southern Africa,FOREIGN AND COMMONWEALTH OFFICE,400106654,1477.41
DFID,DFID,05/07/2010,FCO Post Account,West and Southern Africa,FOREIGN AND COMMONWEALTH OFFICE,400106693,6970.65
DFID,DFID,05/07/2010,FCO Post Account,Asia Division,FOREIGN AND COMMONWEALTH OFFICE,400106654,196.03
DFID,DFID,05/07/2010,FCO Post Account,Asia Division,FOREIGN AND COMMONWEALTH OFFICE,400106693,214.16
DFID,DFID,05/07/2010,FCO Post Account,East and Central Africa,FOREIGN AND COMMONWEALTH OFFICE,400106654,29243.54
DFID,DFID,05/07/2010,FCO Post Account,East and Central Africa,FOREIGN AND COMMONWEALTH OFFICE,400106693,7489.2
DFID,DFID,05/07/2010,FCO Post Account,Asia Division,FOREIGN AND COMMONWEALTH OFFICE,400106693,27.59
DFID,DFID,05/07/2010,Research & Development,Policy and Research Directorate,UNIVERSITY OF LONDON INSTIT,400107046,41418.75
DFID,DFID,05/07/2010,Technical & Advisory services,East and Central Africa,DELTA PARTNERSHIP SOLUTIONS LTD,400106909,41627.1
DFID,DFID,05/07/2010,Technical & Advisory services,West and Southern Africa,CARE INTERNATIONAL,400107090,27105.38
DFID,DFID,05/07/2010,FCO Post Account,Human Resources Division,FOREIGN AND COMMONWEALTH OFFICE,400106654,41.03
DFID,DFID,05/07/2010,FCO Post Account,Human Resources Division,FOREIGN AND COMMONWEALTH OFFICE,400106693,18.74
DFID,DFID,05/07/2010,Technical & Advisory services,"Security & Humanitarian, Middle East, Caribbean & Overseas Territories Division",THE CROWN AGENTS,400108180,88100
DFID,DFID,05/07/2010,Technical & Advisory services,Asia Division,INFRASTRUCTURE PROFESSIONALS ENTERPRISE,400106591,36894.25
DFID,DFID,05/07/2010,FCO Post Account,Business Solutions Division Level,FOREIGN AND COMMONWEALTH OFFICE,400106654,814.49
DFID,DFID,05/07/2010,FCO Post Account,Business Solutions Division Level,FOREIGN AND COMMONWEALTH OFFICE,400106693,8290.72
DFID,DFID,05/07/2010,Aid to international organisations,"Security & Humanitarian, Middle East, Caribbean & Overseas Territories Division",UNDP CONTRIBUTIONS GBP,400106698,300000
DFID,DFID,05/07/2010,Consumables,Business Solutions Division Level,ASPEN  SOLUTIONS LTD,400106810,90114.51
DFID,DFID,05/07/2010,Communications,Business Solutions Division Level,FCO RECOVERIES UNIT,400106697,166698.25
DFID,DFID,05/07/2010,Communications,Business Solutions Division Level,FCO RECOVERIES UNIT,400106697,-80252.17
DFID,DFID,05/07/2010,Technical & Advisory services,International Relations Division,TRIBAL HELM CORPORATION LTD,400107058,63645.84
DFID,DFID,05/07/2010,FCO Post Account,"Security & Humanitarian, Middle East, Caribbean & Overseas Territories Division",FOREIGN AND COMMONWEALTH OFFICE,400106654,5096.85
DFID,DFID,05/07/2010,Aid to civil society organisations / NGOs,West and Southern Africa,INSTITUTE OF ECONOMICS AND SOCIAL STUDIES,400106539,31249.72
DFID,DFID,05/07/2010,Technical & Advisory services,Asia Division,WSP INTERNATIONAL LIMITED,400107376,64284.83
DFID,DFID,05/07/2010,Technical & Advisory services,Asia Division,WSP INTERNATIONAL LIMITED,400107376,847662.04
DFID,DFID,05/07/2010,Technical & Advisory services,West and Southern Africa,MALARIA CONSORTIUM,400106887,290308
DFID,DFID,05/07/2010,Technical & Advisory services,West and Southern Africa,Akintola Williams Deloitte Consultin,400107689,53662.02
DFID,DFID,05/07/2010,Energy Costs,Human Resources Division,EDF ENERGY,400106762,30171.53
DFID,DFID,05/07/2010,Energy Costs,Human Resources Division,EDF ENERGY,400106762,30.35
DFID,DFID,05/07/2010,Technical & Advisory services,Western Asia and Stabilisation Division,THE CROWN AGENTS,400108180,62400
DFID,DFID,05/07/2010,FCO Post Account,Policy and Research Directorate,FOREIGN AND COMMONWEALTH OFFICE,400106654,53.89
DFID,DFID,05/07/2010,Technical & Advisory services,West and Southern Africa,TRIBAL HELM CORPORATION LTD,400107055,61107.5
DFID,DFID,05/07/2010,"Property Repairs, Maintenance & Alterations",East and Central Africa,DMS AFRICA,400106661,355705.65
DFID,DFID,06/07/2010,Technical & Advisory services,East and Central Africa,MET OFFICE,400107271,40697.12
DFID,DFID,06/07/2010,Aid to civil society organisations / NGOs,East and Central Africa,THE RAINFOREST FOUNDATION UK,400107045,150256.75
DFID,DFID,06/07/2010,Technical & Advisory services,Asia Division,Harewelle International Limited.,400107270,93666.67
DFID,DFID,06/07/2010,Aid to civil society organisations / NGOs,Asia Division,Harewelle International Limited.,400107270,1144656.77
DFID,DFID,06/07/2010,FCO Post Account,International Relations Division,FOREIGN AND COMMONWEALTH OFFICE,400106997,240.41
DFID,DFID,06/07/2010,Aid to civil society organisations / NGOs,Policy and Research Directorate,WATERAID,400106911,45132
DFID,DFID,06/07/2010,FCO Post Account,International Relations Division,FOREIGN AND COMMONWEALTH OFFICE,400106929,19644.57
DFID,DFID,06/07/2010,FCO Post Account,International Relations Division,FOREIGN AND COMMONWEALTH OFFICE,400107060,37019.68
DFID,DFID,06/07/2010,FCO Post Account,"Security & Humanitarian, Middle East, Caribbean & Overseas Territories Division",FOREIGN AND COMMONWEALTH OFFICE,400106929,22254.41
DFID,DFID,06/07/2010,FCO Post Account,"Security & Humanitarian, Middle East, Caribbean & Overseas Territories Division",FOREIGN AND COMMONWEALTH OFFICE,400107060,17031.14
DFID,DFID,06/07/2010,FCO Post Account,West and Southern Africa,FOREIGN AND COMMONWEALTH OFFICE,400106997,5465.64
DFID,DFID,06/07/2010,FCO Post Account,Asia Division,FOREIGN AND COMMONWEALTH OFFICE,400106997,17441.46
DFID,DFID,06/07/2010,FCO Post Account,Asia Division,FOREIGN AND COMMONWEALTH OFFICE,400106997,5437.77
DFID,DFID,06/07/2010,Technical & Advisory services,Evaluation Department,ITAD LTD,400107050,85861.95
DFID,DFID,06/07/2010,Research & Development,Policy and Research Directorate,SAFOD,400107065,114393
DFID,DFID,06/07/2010,FCO Post Account,Policy and Research Directorate,FOREIGN AND COMMONWEALTH OFFICE,400106997,51.12
DFID,DFID,06/07/2010,FCO Post Account,Human Resources Division,FOREIGN AND COMMONWEALTH OFFICE,400106929,944.84
DFID,DFID,06/07/2010,FCO Post Account,Policy and Research Directorate,FOREIGN AND COMMONWEALTH OFFICE,400106997,153.37
DFID,DFID,06/07/2010,Technical & Advisory services,Asia Division,Infrastructure Professionals Enterprise (P) Ltd.,400106733,29791.68
DFID,DFID,06/07/2010,FCO Post Account,Business Solutions Division Level,FOREIGN AND COMMONWEALTH OFFICE,400106997,1704.98
DFID,DFID,06/07/2010,FCO Post Account,Business Solutions Division Level,FOREIGN AND COMMONWEALTH OFFICE,400107060,1582.29
DFID,DFID,06/07/2010,FCO Post Account,Internal Audit,FOREIGN AND COMMONWEALTH OFFICE,400107060,3046.58
DFID,DFID,06/07/2010,FCO Post Account,International Relations Division,FOREIGN AND COMMONWEALTH OFFICE,400106997,4.62
DFID,DFID,06/07/2010,FCO Post Account,International Relations Division,FOREIGN AND COMMONWEALTH OFFICE,400106997,119.37
DFID,DFID,06/07/2010,Aid to civil society organisations / NGOs,Policy and Research Directorate,ACTION ON DISABILITY AND DE,400107049,170000
DFID,DFID,06/07/2010,Aid to civil society organisations / NGOs,Policy and Research Directorate,HELPAGE INTERNATIONAL,400106773,467500
DFID,DFID,06/07/2010,Aid to civil society organisations / NGOs,Policy and Research Directorate,SKILLSHARE INTERNATIONAL,400106769,517500
DFID,DFID,06/07/2010,Aid to civil society organisations / NGOs,Policy and Research Directorate,UNITED NATIONS ASSOCIATION INTERN,400106754,402500
DFID,DFID,06/07/2010,Aid to civil society organisations / NGOs,Policy and Research Directorate,WATERAID,400106753,255000
DFID,DFID,06/07/2010,FCO Post Account,Policy and Research Directorate,FOREIGN AND COMMONWEALTH OFFICE,400106997,13.13
DFID,DFID,06/07/2010,FCO Post Account,International Relations Division,FOREIGN AND COMMONWEALTH OFFICE,400106997,70.81
DFID,DFID,06/07/2010,Technical & Advisory services,West and Southern Africa,CARE INTERNATIONAL UK,400107248,52303.27
DFID,DFID,06/07/2010,Technical & Advisory services,West and Southern Africa,ONE WORLD,400107268,39179
DFID,DFID,06/07/2010,Technical & Advisory services,West and Southern Africa,ONE WORLD,400107269,82704
DFID,DFID,06/07/2010,Aid to international organisations,International Finance Division,IBRD HSBC T,400106912,400000
DFID,DFID,06/07/2010,FCO Post Account,International Relations Division,FOREIGN AND COMMONWEALTH OFFICE,400106997,1610.09
DFID,DFID,07/07/2010,FCO Post Account,Western Asia and Stabilisation Division,FOREIGN AND COMMONWEALTH OFFICE,400107250,897.11
DFID,DFID,07/07/2010,Technical & Advisory services,Asia Division,MOTT MACDONALD INTERNATIONAL,400108114,52975.25
DFID,DFID,07/07/2010,Technical & Advisory services,Policy and Research Directorate,THE IDL GROUP,400107902,29598.75
DFID,DFID,07/07/2010,Technical & Advisory services,Policy and Research Directorate,THE IDL GROUP,400107902,26440.33
DFID,DFID,07/07/2010,FCO Post Account,Policy and Research Directorate,FOREIGN AND COMMONWEALTH OFFICE,400107250,2758.32
DFID,DFID,07/07/2010,FCO Post Account,Asia Division,FOREIGN AND COMMONWEALTH OFFICE,400107250,1117.69
DFID,DFID,07/07/2010,FCO Post Account,Asia Division,FOREIGN AND COMMONWEALTH OFFICE,400107250,681.08
DFID,DFID,07/07/2010,FCO Post Account,Asia Division,FOREIGN AND COMMONWEALTH OFFICE,400107250,78.3
DFID,DFID,07/07/2010,FCO Post Account,Asia Division,FOREIGN AND COMMONWEALTH OFFICE,400107250,1886.09
DFID,DFID,07/07/2010,FCO Post Account,East and Central Africa,FOREIGN AND COMMONWEALTH OFFICE,400107250,459.16
DFID,DFID,07/07/2010,FCO Post Account,West and Southern Africa,FOREIGN AND COMMONWEALTH OFFICE,400107250,2928.94
DFID,DFID,07/07/2010,FCO Post Account,Western Asia and Stabilisation Division,FOREIGN AND COMMONWEALTH OFFICE,400107250,78.23
DFID,DFID,07/07/2010,Aid to civil society organisations / NGOs,Asia Division,SAVE THE CHILDREN,400107361,135000
DFID,DFID,07/07/2010,FCO Post Account,West and Southern Africa,FOREIGN AND COMMONWEALTH OFFICE,400107250,-1375.63
DFID,DFID,07/07/2010,FCO Post Account,East and Central Africa,FOREIGN AND COMMONWEALTH OFFICE,400107250,11412.47
DFID,DFID,07/07/2010,FCO Post Account,East and Central Africa,FOREIGN AND COMMONWEALTH OFFICE,400107250,3307.94
DFID,DFID,07/07/2010,Technical & Advisory services,West and Southern Africa,DAI EUROPE LIMITED,400107809,88226.93
DFID,DFID,07/07/2010,Aid to civil society organisations / NGOs,Policy and Research Directorate,KPMG DEVELOPMENT SERVICE,400107381,407327.97
DFID,DFID,07/07/2010,Aid to international organisations,Policy and Research Directorate,The World  Bank IBRD,400107908,31015.5
DFID,DFID,07/07/2010,FCO Post Account,Human Resources Division,FOREIGN AND COMMONWEALTH OFFICE,400107250,254.79
DFID,DFID,07/07/2010,Research & Development,Policy and Research Directorate,Population Council,400107318,294894
DFID,DFID,07/07/2010,Aid to partner government,Asia Division,THE CROWN AGENTS,400107243,742569.33
DFID,DFID,07/07/2010,FCO Post Account,Business Solutions Division Level,FOREIGN AND COMMONWEALTH OFFICE,400107250,420.91
DFID,DFID,07/07/2010,FCO Post Account,"Security & Humanitarian, Middle East, Caribbean & Overseas Territories Division",FOREIGN AND COMMONWEALTH OFFICE,400107250,5359.71
DFID,DFID,07/07/2010,FCO Post Account,"Security & Humanitarian, Middle East, Caribbean & Overseas Territories Division",FOREIGN AND COMMONWEALTH OFFICE,400107250,326.65
DFID,DFID,07/07/2010,Aid to civil society organisations / NGOs,West and Southern Africa,ActionAid Nigeria (Transfer A/C),400107369,111310
DFID,DFID,07/07/2010,Hardware,West and Southern Africa,THE CROWN AGENTS,400107764,-36076.76
DFID,DFID,07/07/2010,Aid to civil society organisations / NGOs,Communications Division,DEVELOPMENT EDUCATION CENTRE,400107325,26668
DFID,DFID,07/07/2010,FCO Post Account,"Security & Humanitarian, Middle East, Caribbean & Overseas Territories Division",FOREIGN AND COMMONWEALTH OFFICE,400107250,2143.29
DFID,DFID,07/07/2010,Technical & Advisory services,Policy and Research Directorate,Fundacion ZaragozaLogistics Center,400107336,26744.3
DFID,DFID,07/07/2010,Technical & Advisory services,West and Southern Africa,PKF (UK) LLP,400107895,164273.12
DFID,DFID,07/07/2010,Aid to partner government,"Security & Humanitarian, Middle East, Caribbean & Overseas Territories Division",THE CROWN AGENTS,400107253,38000
DFID,DFID,07/07/2010,FCO Post Account,Western Asia and Stabilisation Division,FOREIGN AND COMMONWEALTH OFFICE,400107250,401.45
DFID,DFID,07/07/2010,Technical & Advisory services,West and Southern Africa,CAMBRIDGE EDUCATION CONSUL,400107805,35575.02
DFID,DFID,07/07/2010,Technical & Advisory services,West and Southern Africa,LIVERPOOL ASSOCIATES IN TROP. HEALTH,400107889,63865.68
DFID,DFID,08/07/2010,Technical & Advisory services,Asia Division,Cardno Agrisystems Limited,400107543,76910.7
DFID,DFID,08/07/2010,Aid to civil society organisations / NGOs,Asia Division,WESTMINSTER FOUNDATION FOR DEMOCRACY,400107538,99108.27
DFID,DFID,08/07/2010,Technical & Advisory services,Central Department Division,THE CROWN AGENTS,400107925,50000
DFID,DFID,08/07/2010,Aid to civil society organisations / NGOs,Policy and Research Directorate,Center for Global Development,400107440,63272.57
DFID,DFID,08/07/2010,Aid to civil society organisations / NGOs,Policy and Research Directorate,Center for Global Development,400107440,16301.68
DFID,DFID,08/07/2010,Aid to civil society organisations / NGOs,"Security & Humanitarian, Middle East, Caribbean & Overseas Territories Division",International Crisis Group,400107429,150000
DFID,DFID,08/07/2010,Aid to civil society organisations / NGOs,"Security & Humanitarian, Middle East, Caribbean & Overseas Territories Division",ACTIONAID UK,400107514,45055
DFID,DFID,08/07/2010,Aid to partner government,East and Central Africa,IBRD HSBC T,400107472,15300000
DFID,DFID,08/07/2010,Aid to international organisations,International Relations Division,COMMISSION EUROPEAN COMMUNITY - DFID EURO ACCOUNT,400107709,126864468
DFID,DFID,08/07/2010,Aid to international organisations,International Relations Division,COMMISSION EUROPEAN COMMUNITY - DFID EURO ACCOUNT,400107709,197.72
DFID,DFID,08/07/2010,Aid to international organisations,International Relations Division,EUROPEAN INVESTMENT BANK,400107703,12730608
DFID,DFID,08/07/2010,Technical & Advisory services,Policy and Research Directorate,EMERGING MARKETS GROUP,400107528,46504.48
DFID,DFID,08/07/2010,Aid to international organisations,Policy and Research Directorate,IBRD HSBC T,400107627,100000
DFID,DFID,08/07/2010,Aid to civil society organisations / NGOs,"Security & Humanitarian, Middle East, Caribbean & Overseas Territories Division",ACTIONAID UK,400107820,180442.16
DFID,DFID,08/07/2010,Technical & Advisory services,Asia Division,CAMBRIDGE EDUCATION LTD,400107852,162507.7
DFID,DFID,08/07/2010,Technical & Advisory services,Asia Division,CAMBRIDGE EDUCATION LTD,400107856,462120.48
DFID,DFID,08/07/2010,Technical & Advisory services,East and Central Africa,LIVERPOOL ASSOCIATES IN TROP. HEALTH,400107921,216462.64
DFID,DFID,08/07/2010,Aid to partner government,"Security & Humanitarian, Middle East, Caribbean & Overseas Territories Division",THE CROWN AGENTS,400107867,3000000
DFID,DFID,08/07/2010,Aid to civil society organisations / NGOs,Communications Division,YORKSHIRE & HUMBER GLOBAL SCHOOLS AS,400107506,39610
DFID,DFID,08/07/2010,Technical & Advisory services,Western Asia and Stabilisation Division,THIRD PARTY MONIES,400107513,49347.76
DFID,DFID,08/07/2010,Purchase of Vehicles,Western Asia and Stabilisation Division,THE CROWN AGENTS,400107566,83114.26
DFID,DFID,08/07/2010,Aid to civil society organisations / NGOs,West and Southern Africa,Community Media Trust,400107468,180568.38
DFID,DFID,08/07/2010,Aid to international organisations,West and Southern Africa, UNICEF,400107433,202641
DFID,DFID,09/07/2010,Research & Development,Policy and Research Directorate,NRI LTD.,400108111,25000
DFID,DFID,09/07/2010,Aid to civil society organisations / NGOs,"Security & Humanitarian, Middle East, Caribbean & Overseas Territories Division",INTERNATIONAL ALERT,400107952,100000
DFID,DFID,09/07/2010,Aid to civil society organisations / NGOs,Asia Division,International Crisis Group,400107904,50000
DFID,DFID,09/07/2010,Aid to civil society organisations / NGOs,Policy and Research Directorate,OVERSEAS DEVELOPMENT INSTITUTE,400107878,147122.03
DFID,DFID,09/07/2010,Technical & Advisory services,Policy and Research Directorate,International Road Federation (IRF),400107942,221472.86
DFID,DFID,09/07/2010,Technical & Advisory services,Human Resources Division,PRICEWATERHOUSECOOPERS,400107940,95912.9
DFID,DFID,09/07/2010,Aid to civil society organisations / NGOs,"Security & Humanitarian, Middle East, Caribbean & Overseas Territories Division",NORWEGIAN REFUGEE COUNCIL,400107916,120000
DFID,DFID,09/07/2010,Technical & Advisory services,Asia Division,OPTIONS CONSULTANCY SERVICES LIMITED,400107911,52623.73
DFID,DFID,09/07/2010,Technical & Advisory services,Asia Division,OPTIONS CONSULTANCY SERVICES LIMITED,400107911,-27612.31
DFID,DFID,09/07/2010,Technical & Advisory services,Asia Division,OPTIONS CONSULTANCY SERVICES LIMITED,400107912,55469.69
DFID,DFID,09/07/2010,Technical & Advisory services,Asia Division,OPTIONS CONSULTANCY SERVICES LIMITED,400108113,37684.06
DFID,DFID,09/07/2010,Technical & Advisory services,Asia Division,OPTIONS CONSULTANCY SERVICES LIMITED,400108120,46949.56
DFID,DFID,09/07/2010,Technical & Advisory services,West and Southern Africa,ADAM SMITH INTERNATIONAL  LTD,400108034,365214.14
DFID,DFID,09/07/2010,Aid to international organisations,West and Southern Africa,International Monetary Fund (GBP),400107919,450000
DFID,DFID,09/07/2010,Aid to international organisations,West and Southern Africa,UNICEF,400107930,3050000
DFID,DFID,09/07/2010,Technical & Advisory services,Policy and Research Directorate,The Futures Company,400108161,71087.5
DFID,DFID,09/07/2010,Technical & Advisory services,West and Southern Africa,OPTIONS CONSULTANCY SERVICES LIMITED,400107933,58429.8
DFID,DFID,09/07/2010,Staff Business Travel and Subsistence,Asia Division,Hogg Robinson Group,6000025,3323.85
DFID,DFID,09/07/2010,Staff Business Travel and Subsistence,Business Solutions Division Level,Hogg Robinson Group,6000025,5460.64
DFID,DFID,09/07/2010,Staff Business Travel and Subsistence,Communications Division,Hogg Robinson Group,6000025,2001.31
DFID,DFID,09/07/2010,Staff Business Travel and Subsistence,East and Central Africa,Hogg Robinson Group,6000025,14204.77
DFID,DFID,09/07/2010,Staff Business Travel and Subsistence,Evaluation Department,Hogg Robinson Group,6000025,5612.69
DFID,DFID,09/07/2010,Staff Business Travel and Subsistence,Finance and Corporate Performance Division,Hogg Robinson Group,6000025,6599.75
DFID,DFID,09/07/2010,Staff Business Travel and Subsistence,Human Resources Division,Hogg Robinson Group,6000025,17420.89
DFID,DFID,09/07/2010,Staff Business Travel and Subsistence,Internal Audit,Hogg Robinson Group,6000025,1146.04
DFID,DFID,09/07/2010,Staff Business Travel and Subsistence,International Finance Division,Hogg Robinson Group,6000025,1601.79
DFID,DFID,09/07/2010,Staff Business Travel and Subsistence,International Relations Division,Hogg Robinson Group,6000025,12296.77
DFID,DFID,09/07/2010,Staff Business Travel and Subsistence,Policy and Research Directorate,Hogg Robinson Group,6000025,26314.74
DFID,DFID,09/07/2010,Staff Business Travel and Subsistence,"Security & Humanitarian, Middle East, Caribbean & Overseas Territories Division",Hogg Robinson Group,6000025,6609.3
DFID,DFID,09/07/2010,Staff Business Travel and Subsistence,Top Management Group,Hogg Robinson Group,6000025,23392.09
DFID,DFID,09/07/2010,Staff Business Travel and Subsistence,West and Southern Africa,Hogg Robinson Group,6000025,13257.85
DFID,DFID,09/07/2010,Staff Business Travel and Subsistence,Western Asia and Stabilisation Division,Hogg Robinson Group,6000025,17968.93
DFID,DFID,09/07/2010,Staff training & Conferences,Asia Division,Hogg Robinson Group,6000025,129.56
DFID,DFID,09/07/2010,Staff training & Conferences,Business Solutions Division Level,Hogg Robinson Group,6000025,327.26
DFID,DFID,09/07/2010,Staff training & Conferences,Finance and Corporate Performance Division,Hogg Robinson Group,6000025,475.12
DFID,DFID,09/07/2010,Staff training & Conferences,Policy and Research Directorate,Hogg Robinson Group,6000025,245.72
DFID,DFID,09/07/2010,Staff training & Conferences,"Security & Humanitarian, Middle East, Caribbean & Overseas Territories Division",Hogg Robinson Group,6000025,990.72
DFID,DFID,09/07/2010,Staff training & Conferences,West and Southern Africa,Hogg Robinson Group,6000025,384.83
DFID,DFID,12/07/2010,Aid to civil society organisations / NGOs,Asia Division,HEALTH POVERTY ACTION,400108017,56213
DFID,DFID,12/07/2010,Technical & Advisory services,Asia Division,HEALTH PARTNERS INTERNATIONAL,400108137,54646.26
DFID,DFID,12/07/2010,Aid to civil society organisations / NGOs,Policy and Research Directorate,Triple Line Consulting Limited,400108179,333388.95
DFID,DFID,12/07/2010,Technical & Advisory services,Policy and Research Directorate,PRICEWATERHOUSECOOPERS,400108223,173997.53
DFID,DFID,12/07/2010,Technical & Advisory services,Policy and Research Directorate,PRICEWATERHOUSECOOPERS,400108224,86998.76
DFID,DFID,12/07/2010,Technical & Advisory services,Policy and Research Directorate,PRICEWATERHOUSECOOPERS,400108221,173997.53
DFID,DFID,12/07/2010,Technical & Advisory services,Policy and Research Directorate,PRICEWATERHOUSECOOPERS,400108224,86998.76
DFID,DFID,12/07/2010,Aid to international organisations,International Relations Division,BRITISH COUNCIL,400108770,177316.31
DFID,DFID,12/07/2010,Aid to international organisations,International Relations Division,BRITISH COUNCIL,400108776,1460752.44
DFID,DFID,12/07/2010,Technical & Advisory services,West and Southern Africa,BRITISH COUNCIL,400108379,70122.44
DFID,DFID,12/07/2010,Technical & Advisory services,West and Southern Africa,BRITISH COUNCIL,400108379,-35611.22
DFID,DFID,12/07/2010,Aid to partner government,West and Southern Africa,THE CROWN AGENTS,400108616,1600000
DFID,DFID,12/07/2010,Aid to international organisations,Policy and Research Directorate, OECD,400108229,250000
DFID,DFID,12/07/2010,Emergency / Humanitarian Assistance,"Security & Humanitarian, Middle East, Caribbean & Overseas Territories Division",THE CROWN AGENTS,400108336,18197.25
DFID,DFID,12/07/2010,Emergency / Humanitarian Assistance,"Security & Humanitarian, Middle East, Caribbean & Overseas Territories Division",THE CROWN AGENTS,400108336,108066.9
DFID,DFID,12/07/2010,Technical & Advisory services,Asia Division,GHK CONSULTING LTD,400108731,16650
DFID,DFID,12/07/2010,Technical & Advisory services,Asia Division,GHK CONSULTING LTD,400108731,39301
DFID,DFID,12/07/2010,Technical & Advisory services,Asia Division,OPTIONS CONSULTANCY SERVICES LIMITED,400108498,75120.16
DFID,DFID,12/07/2010,Aid to civil society organisations / NGOs,East and Central Africa,Action Against Hunger (ACFKenya,400108220,114303
DFID,DFID,12/07/2010,Aid to civil society organisations / NGOs,East and Central Africa,AFRICAN MEDICAL RESEARCH FOUNDATION,400108060,833228.86
DFID,DFID,12/07/2010,Aid to civil society organisations / NGOs,East and Central Africa,CGD (ELOG),400108225,339703.3
DFID,DFID,12/07/2010,Aid to international organisations,East and Central Africa,FINANCIAL SECTOR DEEPENING,400108187,2814000
DFID,DFID,12/07/2010,Technical & Advisory services,East and Central Africa,OXFAM,400108424,265974
DFID,DFID,12/07/2010,Aid to international organisations,East and Central Africa,TRADEMARK EAST AFRICA,400108096,750000
DFID,DFID,12/07/2010,Technical & Advisory services,West and Southern Africa,THE CROWN AGENTS,400108366,1753.18
DFID,DFID,12/07/2010,Medical & Health Supplies/Services,West and Southern Africa,THE CROWN AGENTS,400108366,58439.47
DFID,DFID,12/07/2010,Aid to civil society organisations / NGOs,Policy and Research Directorate,WATERAID,400108227,255000
DFID,DFID,12/07/2010,Aid to civil society organisations / NGOs,East and Central Africa,AFRICA EDUCATIONAL TRUST,400108208,312442
DFID,DFID,12/07/2010,Aid to civil society organisations / NGOs,East and Central Africa,TROCAIRE,400108049,221295
DFID,DFID,12/07/2010,Aid to partner government,"Security & Humanitarian, Middle East, Caribbean & Overseas Territories Division",THE CROWN AGENTS,400108606,4050000
DFID,DFID,12/07/2010,Aid to international organisations,East and Central Africa,UNDP CONTRIBUTIONS GBP,400108450,120000
DFID,DFID,12/07/2010,Technical & Advisory services,East and Central Africa,KPMG EAST AFRICA LTD,400108139,51969
DFID,DFID,12/07/2010,Aid to civil society organisations / NGOs,East and Central Africa,The Peace and Security Institute of Africa,400108071,27230
DFID,DFID,12/07/2010,Aid to international organisations,East and Central Africa,UNDP CONTRIBUTIONS GBP,400108040,100000
DFID,DFID,13/07/2010,FCO Post Account,Western Asia and Stabilisation Division,FOREIGN AND COMMONWEALTH OFFICE,400108318,1761.97
DFID,DFID,13/07/2010,Aid to international organisations,Asia Division,UNOPS,400108534,3750000
DFID,DFID,13/07/2010,FCO Post Account,Asia Division,FOREIGN AND COMMONWEALTH OFFICE,400108318,86.74
DFID,DFID,13/07/2010,FCO Post Account,Asia Division,FOREIGN AND COMMONWEALTH OFFICE,400108318,8158.24
DFID,DFID,13/07/2010,FCO Post Account,Asia Division,FOREIGN AND COMMONWEALTH OFFICE,400108318,792.81
DFID,DFID,13/07/2010,FCO Post Account,Asia Division,FOREIGN AND COMMONWEALTH OFFICE,400108318,3080.99
DFID,DFID,13/07/2010,FCO Post Account,Asia Division,FOREIGN AND COMMONWEALTH OFFICE,400108318,22663.78
DFID,DFID,13/07/2010,FCO Post Account,East and Central Africa,FOREIGN AND COMMONWEALTH OFFICE,400108318,149.73
DFID,DFID,13/07/2010,FCO Post Account,West and Southern Africa,FOREIGN AND COMMONWEALTH OFFICE,400108318,3152.96
DFID,DFID,13/07/2010,FCO Post Account,East and Central Africa,FOREIGN AND COMMONWEALTH OFFICE,400108318,57.71
DFID,DFID,13/07/2010,FCO Post Account,West and Southern Africa,FOREIGN AND COMMONWEALTH OFFICE,400108318,2017.8
DFID,DFID,13/07/2010,FCO Post Account,Asia Division,FOREIGN AND COMMONWEALTH OFFICE,400108318,160.54
DFID,DFID,13/07/2010,FCO Post Account,East and Central Africa,FOREIGN AND COMMONWEALTH OFFICE,400108318,57828.77
DFID,DFID,13/07/2010,FCO Post Account,East and Central Africa,FOREIGN AND COMMONWEALTH OFFICE,400108318,2864.7
DFID,DFID,13/07/2010,Technical & Advisory services,West and Southern Africa,PRICEWATERHOUSECOOPERS,400108462,168638
DFID,DFID,13/07/2010,Technical & Advisory services,West and Southern Africa,PRICEWATERHOUSECOOPERS,400108462,27499
DFID,DFID,13/07/2010,Aid to civil society organisations / NGOs,Policy and Research Directorate,BUSINESS IN THE COMMUNITY,400108499,110597.95
DFID,DFID,13/07/2010,Technical & Advisory services,Policy and Research Directorate,OXFORD POLICY MANAGEMENT,400108460,31285.98
DFID,DFID,13/07/2010,Research & Development,Policy and Research Directorate,THE UNIVERSITY OF MANCHESTER,400108656,89169.59
DFID,DFID,13/07/2010,Technical & Advisory services,Asia Division,OPTIONS CONSULTANCY SERVICES LIMITED,400108463,46960.8
DFID,DFID,13/07/2010,Technical & Advisory services,Asia Division,OPTIONS CONSULTANCY SERVICES LIMITED,400108472,38316.01
DFID,DFID,13/07/2010,Technical & Advisory services,Asia Division,OPTIONS CONSULTANCY SERVICES LIMITED,400108478,29856.82
DFID,DFID,13/07/2010,Technical & Advisory services,Asia Division,OPTIONS CONSULTANCY SERVICES LIMITED,400108482,46949.56
DFID,DFID,13/07/2010,Technical & Advisory services,Asia Division,OPTIONS CONSULTANCY SERVICES LIMITED,400108485,49255.04
DFID,DFID,13/07/2010,Technical & Advisory services,Asia Division,OPTIONS CONSULTANCY SERVICES LIMITED,400108488,38316.01
DFID,DFID,13/07/2010,Technical & Advisory services,Asia Division,OPTIONS CONSULTANCY SERVICES LIMITED,400108489,35488.66
DFID,DFID,13/07/2010,Technical & Advisory services,Asia Division,PRICEWATERHOUSECOOPERS DEVELOPMENT,400108272,107040
DFID,DFID,13/07/2010,Technical & Advisory services,Asia Division,PRICEWATERHOUSECOOPERS DEVELOPMENT,400108273,65883
DFID,DFID,13/07/2010,Technical & Advisory services,Asia Division,PRICEWATERHOUSECOOPERS DEVELOPMENT,400108277,54816
DFID,DFID,13/07/2010,Technical & Advisory services,Asia Division,PRICEWATERHOUSECOOPERS DEVELOPMENT,400108308,39887
DFID,DFID,13/07/2010,Technical & Advisory services,Asia Division,PRICEWATERHOUSECOOPERS DEVELOPMENT,400108320,37510
DFID,DFID,13/07/2010,Technical & Advisory services,Asia Division,PRICEWATERHOUSECOOPERS DEVELOPMENT,400108328,28529
DFID,DFID,13/07/2010,FCO Post Account,Business Solutions Division Level,FOREIGN AND COMMONWEALTH OFFICE,400108318,1221.22
DFID,DFID,13/07/2010,Aid to civil society organisations / NGOs,East and Central Africa,MERLIN,400108443,164450.8
DFID,DFID,13/07/2010,Technical & Advisory services,International Relations Division,PUBLIC ADMINISTRATION INTERN,400108633,30789.64
DFID,DFID,13/07/2010,Technical & Advisory services,West and Southern Africa,Management Sciences for Health,400108728,139033
DFID,DFID,13/07/2010,FCO Post Account,"Security & Humanitarian, Middle East, Caribbean & Overseas Territories Division",FOREIGN AND COMMONWEALTH OFFICE,400108318,5886.97
DFID,DFID,13/07/2010,FCO Post Account,"Security & Humanitarian, Middle East, Caribbean & Overseas Territories Division",FOREIGN AND COMMONWEALTH OFFICE,400108318,433.93
DFID,DFID,13/07/2010,Technical & Advisory services,West and Southern Africa,HTSPE LTD,400108605,552467.75
DFID,DFID,13/07/2010,Technical & Advisory services,West and Southern Africa,HTSPE LTD,400108605,412577.13
DFID,DFID,13/07/2010,Aid to civil society organisations / NGOs,Policy and Research Directorate,INTERNATIONAL INSTITUTE FOR ENVIRO,400108371,185000
DFID,DFID,13/07/2010,Aid to civil society organisations / NGOs,Policy and Research Directorate,WORLD VISION UNITED KINGDOM,400108518,697500
DFID,DFID,13/07/2010,Technical & Advisory services,Western Asia and Stabilisation Division,THE CROWN AGENTS,400108704,61473.65
DFID,DFID,13/07/2010,Technical & Advisory services,West and Southern Africa,BRITISH COUNCIL,400108375,422515.98
DFID,DFID,13/07/2010,Technical & Advisory services,West and Southern Africa,THE CROWN AGENTS,400108635,246428.42
DFID,DFID,13/07/2010,Technical & Advisory services,West and Southern Africa,Masdar (UK) Limited,400108601,118828.99
DFID,DFID,13/07/2010,Technical & Advisory services,West and Southern Africa,RE-ACTION,400108795,78089.7
DFID,DFID,13/07/2010,FCO Post Account,Western Asia and Stabilisation Division,FOREIGN AND COMMONWEALTH OFFICE,400108318,1018.66
DFID,DFID,13/07/2010,Aid to civil society organisations / NGOs,East and Central Africa,OXFAM (General Account),400108479,223041
DFID,DFID,13/07/2010,Technical & Advisory services,West and Southern Africa,THE CROWN AGENTS,400108713,49937.72
DFID,DFID,14/07/2010,Aid to international organisations,Policy and Research Directorate,NATURAL RESOURCES INSTITUTE,400108772,217345
DFID,DFID,14/07/2010,Office Equipment,Asia Division,THE CROWN AGENTS,400108961,34746.95
DFID,DFID,14/07/2010,Technical & Advisory services,Asia Division,MOTT MACDONALD INTERNATIONAL,400108997,96684.97
DFID,DFID,14/07/2010,Aid to other bilateral donors,Policy and Research Directorate,MET OFFICE,400108808,261375
DFID,DFID,14/07/2010,Technical & Advisory services,Policy and Research Directorate,OVERSEAS DEVELOPMENT INSTITUTE,400108811,133084.75
DFID,DFID,14/07/2010,Aid to international organisations,International Relations Division, OECD,400109047,62415
DFID,DFID,14/07/2010,Technical & Advisory services,West and Southern Africa,HUMANITARIAN OUTCOMES,400108662,58745.63
DFID,DFID,14/07/2010,Accomodation costs,West and Southern Africa,HERMES INVESTMENT LTD,400109019,43177.2
DFID,DFID,14/07/2010,Research & Development,Policy and Research Directorate,OVERSEAS DEVELOPMENT INSTITUTE (ODI),400108813,288858.99
DFID,DFID,14/07/2010,Aid to civil society organisations / NGOs,Policy and Research Directorate,UNESCO Institute for Statistics,400108818,200000
DFID,DFID,14/07/2010,Technical & Advisory services,Asia Division,ADAM SMITH INTERNATIONAL  LTD,400108809,39606.38
DFID,DFID,14/07/2010,Aid to partner government,Asia Division,THE CROWN AGENTS,400108695,1516422.87
DFID,DFID,14/07/2010,Technical & Advisory services,Asia Division,GRM INTERNATIONAL LTD,400108939,145600.27
DFID,DFID,14/07/2010,Aid to civil society organisations / NGOs,West and Southern Africa,CIP (Centro de Integridade Publica),400108829,49065
DFID,DFID,14/07/2010,Technical & Advisory services,West and Southern Africa,BRITISH COUNCIL,400108940,445011.66
DFID,DFID,14/07/2010,Technical & Advisory services,West and Southern Africa,BRITISH COUNCIL,400108945,71473.28
DFID,DFID,14/07/2010,Technical & Advisory services,West and Southern Africa,GRM INTERNATIONAL LTD,400108928,157970.32
DFID,DFID,14/07/2010,Technical & Advisory services,West and Southern Africa,GRM INTERNATIONAL LTD,400108937,237676.37
DFID,DFID,14/07/2010,Technical & Advisory services,West and Southern Africa,THE CROWN AGENTS,400108959,261893.29
DFID,DFID,14/07/2010,Technical & Advisory services,West and Southern Africa,THE CROWN AGENTS,400108959,-161621.08
DFID,DFID,14/07/2010,Aid to civil society organisations / NGOs,Communications Division,Damaris Global Learning,400108807,106594
DFID,DFID,14/07/2010,Technical & Advisory services,Western Asia and Stabilisation Division,HLSP LIMITED,400108805,26494.86
DFID,DFID,14/07/2010,Aid to civil society organisations / NGOs,Policy and Research Directorate,OXFAM,400108723,2392500
DFID,DFID,14/07/2010,Aid to civil society organisations / NGOs,Policy and Research Directorate,TRANSPARENCY INTERNAT,400108732,272500
DFID,DFID,14/07/2010,Aid to international organisations,International Finance Division,SG HAMBROS TRUST COMPANY LIMITED,400108575,1000000
DFID,DFID,14/07/2010,Technical & Advisory services,Policy and Research Directorate,CAB INTERNATIONAL,400108797,42035.34
DFID,DFID,14/07/2010,Technical & Advisory services,West and Southern Africa,KPMG Services (PTY) Limited,400108760,8037.94
DFID,DFID,14/07/2010,Technical & Advisory services,West and Southern Africa,KPMG Services (PTY) Limited,400108760,20094.86
DFID,DFID,14/07/2010,Aid to civil society organisations / NGOs,East and Central Africa,OVERSEAS DEVELOPMENT INSTITUTE,400108749,95260.11
DFID,DFID,14/07/2010,Aid to civil society organisations / NGOs,West and Southern Africa,CONCERN UNIVERSAL,400108891,69290
DFID,DFID,15/07/2010,Aid to international organisations,Asia Division,EUROPEAN BANK FOR RECONSTRUCTION AND DEVELOPMENT,400109027,60000
DFID,DFID,15/07/2010,Aid to international organisations,Policy and Research Directorate,THE UN OFFICE on DRUGS AND CRIME,400109007,250000
DFID,DFID,15/07/2010,Emergency / Humanitarian Assistance,"Security & Humanitarian, Middle East, Caribbean & Overseas Territories Division",THE CROWN AGENTS,400109049,34207.55
DFID,DFID,15/07/2010,Emergency / Humanitarian Assistance,"Security & Humanitarian, Middle East, Caribbean & Overseas Territories Division",THE CROWN AGENTS,400109049,23362.2
DFID,DFID,15/07/2010,Emergency / Humanitarian Assistance,"Security & Humanitarian, Middle East, Caribbean & Overseas Territories Division",THE CROWN AGENTS,400109117,55867.14
DFID,DFID,15/07/2010,Emergency / Humanitarian Assistance,"Security & Humanitarian, Middle East, Caribbean & Overseas Territories Division",THE CROWN AGENTS,400109123,57298.88
DFID,DFID,15/07/2010,Software,Business Solutions Division Level,NORTHGATE HR LIMITED,400109126,44230
DFID,DFID,15/07/2010,Aid to civil society organisations / NGOs,West and Southern Africa,OXFAM,400108962,79911.71
DFID,DFID,15/07/2010,Aid to civil society organisations / NGOs,West and Southern Africa,Rensida,400109044,32781.27
DFID,DFID,15/07/2010,Aid to civil society organisations / NGOs,Asia Division,THE GURKHA WELFARE SCHEME,400109010,100000
DFID,DFID,15/07/2010,Aid to international organisations,Asia Division,UNDP CONTRIBUTIONS GBP,400108994,1690000
DFID,DFID,15/07/2010,Aid to other bilateral donors,Asia Division,UNDP CONTRIBUTIONS GBP,400109040,160000
DFID,DFID,15/07/2010,Aid to civil society organisations / NGOs,West and Southern Africa,VSO,400109045,47723
DFID,DFID,15/07/2010,Technical & Advisory services,"Security & Humanitarian, Middle East, Caribbean & Overseas Territories Division",DAI EUROPE LIMITED,400109162,38335.95
DFID,DFID,15/07/2010,Aid to civil society organisations / NGOs,"Security & Humanitarian, Middle East, Caribbean & Overseas Territories Division",UNOPS (ACCESS SUPPORT TEAM PROJECT),400109015,43414.94
DFID,DFID,15/07/2010,Aid to civil society organisations / NGOs,Communications Division,MALARIA NO MORE UK,400109024,57394
DFID,DFID,15/07/2010,Technical & Advisory services,Western Asia and Stabilisation Division,Inventure Research and Managmeent Consulting,400108847,30771.53
DFID,DFID,15/07/2010,Aid to civil society organisations / NGOs,Policy and Research Directorate,PRACTICAL ACTION LTD,400109023,272500
DFID,DFID,15/07/2010,Aid to civil society organisations / NGOs,Policy and Research Directorate,PROGRESSIO,400109046,890000
DFID,DFID,15/07/2010,Aid to civil society organisations / NGOs,Policy and Research Directorate,SCIDEV.NET,400108980,100000
DFID,DFID,15/07/2010,Aid to international organisations,East and Central Africa,UNDP (RWANDA),400109020,799827
DFID,DFID,15/07/2010,Research & Development,West and Southern Africa,HEALTH PARTNERS INTERNATIONAL,400109030,109475.97
DFID,DFID,16/07/2010,Technical & Advisory services,Policy and Research Directorate,EMERGING MARKETS GROUP,400109121,103867.8
DFID,DFID,16/07/2010,Research & Development,Policy and Research Directorate,LONDON SCHOOL OF HYGIENE AND TR,400109657,143605.17
DFID,DFID,16/07/2010,Research & Development,Policy and Research Directorate,UNIVERSITY OF CAMBRIDGE,400109572,136150.56
DFID,DFID,16/07/2010,Technical & Advisory services,Asia Division,GRM INTERNATIONAL LTD,400109654,248913.56
DFID,DFID,16/07/2010,Aid to partner government,West and Southern Africa,THE CROWN AGENTS,400109153,7000000
DFID,DFID,16/07/2010,Aid to partner government,West and Southern Africa,THE CROWN AGENTS,400109676,68000
DFID,DFID,16/07/2010,Technical & Advisory services,Asia Division,UNIVERSITY OF WOLVERHAMPTON,400109641,377698.18
DFID,DFID,16/07/2010,Technical & Advisory services,Asia Division,UNIVERSITY OF WOLVERHAMPTON,400109641,-35547.31
DFID,DFID,16/07/2010,Technical & Advisory services,Asia Division,UNIVERSITY OF WOLVERHAMPTON,400109643,299239.29
DFID,DFID,16/07/2010,Technical & Advisory services,West and Southern Africa,Cambridge  Education Limited,400109155,1987595.74
DFID,DFID,16/07/2010,Technical & Advisory services,West and Southern Africa,THE CROWN AGENTS,400109165,2072.47
DFID,DFID,16/07/2010,Technical & Advisory services,West and Southern Africa,THE CROWN AGENTS,400109614,2642.01
DFID,DFID,16/07/2010,Medical & Health Supplies/Services,West and Southern Africa,THE CROWN AGENTS,400109614,88067
DFID,DFID,16/07/2010,Purchase of Vehicles,West and Southern Africa,THE CROWN AGENTS,400109165,68982.77
DFID,DFID,16/07/2010,Technical & Advisory services,"Security & Humanitarian, Middle East, Caribbean & Overseas Territories Division",Crown Agents Bank,400109696,88029
DFID,DFID,16/07/2010,Aid to partner government,"Security & Humanitarian, Middle East, Caribbean & Overseas Territories Division",THE CROWN AGENTS,400109681,49905
DFID,DFID,16/07/2010,Aid to partner government,"Security & Humanitarian, Middle East, Caribbean & Overseas Territories Division",THE CROWN AGENTS,400109694,46000
DFID,DFID,16/07/2010,Aid to civil society organisations / NGOs,Policy and Research Directorate,WWF-UK,400109177,872500
DFID,DFID,16/07/2010,Aid to other bilateral donors,East and Central Africa,DELOITTE (UGANDA) LTD,400109507,200000
DFID,DFID,16/07/2010,Technical & Advisory services,West and Southern Africa,THE CROWN AGENTS,400109671,47145.25
DFID,DFID,19/07/2010,Technical & Advisory services,West and Southern Africa,Participatory Development Associates Ltd.,400111346,37978.43
DFID,DFID,19/07/2010,Technical & Advisory services,Policy and Research Directorate,Economic Policy Research Centre,400109273,17233.34
DFID,DFID,19/07/2010,Technical & Advisory services,East and Central Africa,Economic Policy Research Centre,400109273,34466.67
DFID,DFID,19/07/2010,Technical & Advisory services,East and Central Africa,Economic Policy Research Centre,400109273,-17233.34
DFID,DFID,20/07/2010,Aid to civil society organisations / NGOs,Asia Division,BRAC,400109494,500000
DFID,DFID,20/07/2010,Aid to civil society organisations / NGOs,Asia Division,Manusher Jonno Foundation,400109481,1625000
DFID,DFID,20/07/2010,Aid to civil society organisations / NGOs,Asia Division,Transparency International (Bangladesh),400109466,416109
DFID,DFID,20/07/2010,Aid to civil society organisations / NGOs,Asia Division,Transparency International (Bangladesh),400109466,27000
DFID,DFID,20/07/2010,Research & Development,Policy and Research Directorate,HAREWELLE INTERNATIONAL LIMITED,400110165,28962.74
DFID,DFID,20/07/2010,Aid to partner government,East and Central Africa,THE CROWN AGENTS,400110459,8000000
DFID,DFID,20/07/2010,Aid to civil society organisations / NGOs,West and Southern Africa,School for Life,400109410,138360.32
DFID,DFID,20/07/2010,Aid to civil society organisations / NGOs,"Security & Humanitarian, Middle East, Caribbean & Overseas Territories Division",BRITISH RED CROSS,400109484,550000
DFID,DFID,20/07/2010,Technical & Advisory services,Asia Division,COFFEY INTERNATIONAL DEVELOPMENT LTD,400110089,60885.43
DFID,DFID,20/07/2010,Technical & Advisory services,Asia Division,INFRASTRUCTURE PROFESSIONALS ENTERPRISE,400109509,67639.27
DFID,DFID,20/07/2010,Technical & Advisory services,West and Southern Africa,CHATHAM  HOUSE ENTERPRISES LIMITED,400109547,57512
DFID,DFID,20/07/2010,Technical & Advisory services,West and Southern Africa,KPMG ANGOLA & MOZAMBIQUE,400110019,42494.1
DFID,DFID,20/07/2010,Aid to civil society organisations / NGOs,Policy and Research Directorate,CHRISTIAN AID,400109474,1300000
DFID,DFID,20/07/2010,Aid to civil society organisations / NGOs,Policy and Research Directorate,Fairtrade Labelling Organizations International e.V.,400109478,750000
DFID,DFID,20/07/2010,Aid to civil society organisations / NGOs,East and Central Africa,SOLIDARITES,400109437,128333
DFID,DFID,20/07/2010,Aid to civil society organisations / NGOs,East and Central Africa,SOLIDARITES,400109437,64071.1
DFID,DFID,20/07/2010,Technical & Advisory services,East and Central Africa,ADAM SMITH INTERNATIONAL  LTD,400110030,72049.38
DFID,DFID,20/07/2010,Technical & Advisory services,East and Central Africa,ADAM SMITH INTERNATIONAL  LTD,400110032,86258.01
DFID,DFID,20/07/2010,Technical & Advisory services,East and Central Africa,ADAM SMITH INTERNATIONAL  LTD,400110035,62351.91
DFID,DFID,20/07/2010,Technical & Advisory services,East and Central Africa,ADAM SMITH INTERNATIONAL  LTD,400110037,77725.3
DFID,DFID,20/07/2010,Aid to international organisations,West and Southern Africa,UNIFEM ( UNDP ),400109473,300000
DFID,DFID,20/07/2010,Furniture & Fittings,Asia Division,Natwest Government Procurement Card,100029,210.26
DFID,DFID,20/07/2010,Hardware,Asia Division,Natwest Government Procurement Card,100029,349.56
DFID,DFID,20/07/2010,Staff Business Travel and Subsistence,Asia Division,Natwest Government Procurement Card,100029,2109.26
DFID,DFID,20/07/2010,Staff training & Conferences,Asia Division,Natwest Government Procurement Card,100029,1807.16
DFID,DFID,20/07/2010,Communications,Business Solutions Division Level,Natwest Government Procurement Card,100029,110.27
DFID,DFID,20/07/2010,Consumables,Business Solutions Division Level,Natwest Government Procurement Card,100029,2621.95
DFID,DFID,20/07/2010,Hardware,Business Solutions Division Level,Natwest Government Procurement Card,100029,1059.74
DFID,DFID,20/07/2010,Software,Business Solutions Division Level,Natwest Government Procurement Card,100029,1340.5
DFID,DFID,20/07/2010,Staff Business Travel and Subsistence,Business Solutions Division Level,Natwest Government Procurement Card,100029,435.66
DFID,DFID,20/07/2010,Staff training & Conferences,Business Solutions Division Level,Natwest Government Procurement Card,100029,4977.24
DFID,DFID,20/07/2010,Contract & Agency,Communications Division,Natwest Government Procurement Card,100029,5243.36
DFID,DFID,20/07/2010,Professional Member Subscriptions,Communications Division,Natwest Government Procurement Card,100029,217.5
DFID,DFID,20/07/2010,Staff training & Conferences,Communications Division,Natwest Government Procurement Card,100029,560.72
DFID,DFID,20/07/2010,Medical & Health Supplies/Services,East and Central Africa,Natwest Government Procurement Card,100029,1505.91
DFID,DFID,20/07/2010,Staff training & Conferences,East and Central Africa,Natwest Government Procurement Card,100029,1121.44
DFID,DFID,20/07/2010,Books & Publications,Finance and Corporate Performance Division,Natwest Government Procurement Card,100029,69.49
DFID,DFID,20/07/2010,Contract & Agency,Finance and Corporate Performance Division,Natwest Government Procurement Card,100029,1339.08
DFID,DFID,20/07/2010,Staff Business Travel and Subsistence,Finance and Corporate Performance Division,Natwest Government Procurement Card,100029,531.3
DFID,DFID,20/07/2010,Subscriptions,Finance and Corporate Performance Division,Natwest Government Procurement Card,100029,280
DFID,DFID,20/07/2010,Accomodation costs,Human Resources Division,Natwest Government Procurement Card,100029,3584.24
DFID,DFID,20/07/2010,Furniture & Fittings,Human Resources Division,Natwest Government Procurement Card,100029,1748.29
DFID,DFID,20/07/2010,Office Equipment,Human Resources Division,Natwest Government Procurement Card,100029,-133.62
DFID,DFID,20/07/2010,"Printing, Stationary & Postage",Human Resources Division,Natwest Government Procurement Card,100029,4404.1
DFID,DFID,20/07/2010,"Property Repairs, Maintenance & Alterations",Human Resources Division,Natwest Government Procurement Card,100029,12.05
DFID,DFID,20/07/2010,Staff Business Travel and Subsistence,Human Resources Division,Natwest Government Procurement Card,100029,191.45
DFID,DFID,20/07/2010,Contract & Agency,International Finance Division,Natwest Government Procurement Card,100029,3079.41
DFID,DFID,20/07/2010,Staff Business Travel and Subsistence,International Finance Division,Natwest Government Procurement Card,100029,716.65
DFID,DFID,20/07/2010,Staff training & Conferences,International Finance Division,Natwest Government Procurement Card,100029,560.72
DFID,DFID,20/07/2010,Contract & Agency,International Relations Division,Natwest Government Procurement Card,100029,3714.42
DFID,DFID,20/07/2010,Staff Business Travel and Subsistence,International Relations Division,Natwest Government Procurement Card,100029,154.06
DFID,DFID,20/07/2010,Staff training & Conferences,International Relations Division,Natwest Government Procurement Card,100029,1121.44
DFID,DFID,20/07/2010,Books & Publications,Policy and Research Directorate,Natwest Government Procurement Card,100029,146.33
DFID,DFID,20/07/2010,Contract & Agency,Policy and Research Directorate,Natwest Government Procurement Card,100029,34149.98
DFID,DFID,20/07/2010,Staff Business Travel and Subsistence,Policy and Research Directorate,Natwest Government Procurement Card,100029,1815.7
DFID,DFID,20/07/2010,Staff training & Conferences,Policy and Research Directorate,Natwest Government Procurement Card,100029,1825.06
DFID,DFID,20/07/2010,Communications,"Security & Humanitarian, Middle East, Caribbean & Overseas Territories Division",Natwest Government Procurement Card,100029,334.89
DFID,DFID,20/07/2010,Contract & Agency,"Security & Humanitarian, Middle East, Caribbean & Overseas Territories Division",Natwest Government Procurement Card,100029,5647.87
DFID,DFID,20/07/2010,"Printing, Stationary & Postage","Security & Humanitarian, Middle East, Caribbean & Overseas Territories Division",Natwest Government Procurement Card,100029,55.17
DFID,DFID,20/07/2010,Staff training & Conferences,"Security & Humanitarian, Middle East, Caribbean & Overseas Territories Division",Natwest Government Procurement Card,100029,560.72
DFID,DFID,20/07/2010,Contract & Agency,Top Management Group,Natwest Government Procurement Card,100029,1851.98
DFID,DFID,20/07/2010,Entertainment & Hospitality,Top Management Group,Natwest Government Procurement Card,100029,409.03
DFID,DFID,20/07/2010,Staff Business Travel and Subsistence,Top Management Group,Natwest Government Procurement Card,100029,589.87
DFID,DFID,20/07/2010,Advertising & Publicity,West and Southern Africa,Natwest Government Procurement Card,100029,9551.96
DFID,DFID,20/07/2010,Communications,West and Southern Africa,Natwest Government Procurement Card,100029,39.53
DFID,DFID,20/07/2010,Consumables,West and Southern Africa,Natwest Government Procurement Card,100029,359
DFID,DFID,20/07/2010,"Printing, Stationary & Postage",West and Southern Africa,Natwest Government Procurement Card,100029,104.82
DFID,DFID,20/07/2010,"Property Repairs, Maintenance & Alterations",West and Southern Africa,Natwest Government Procurement Card,100029,49.88
DFID,DFID,20/07/2010,Staff Business Travel and Subsistence,West and Southern Africa,Natwest Government Procurement Card,100029,7562.32
DFID,DFID,20/07/2010,Staff training & Conferences,West and Southern Africa,Natwest Government Procurement Card,100029,842.65
DFID,DFID,20/07/2010,Subscriptions,West and Southern Africa,Natwest Government Procurement Card,100029,14.14
DFID,DFID,20/07/2010,Vehicle Running Costs,West and Southern Africa,Natwest Government Procurement Card,100029,388.71
DFID,DFID,20/07/2010,Contract & Agency,Western Asia and Stabilisation Division,Natwest Government Procurement Card,100029,9900.17
DFID,DFID,20/07/2010,Furniture & Fittings,Western Asia and Stabilisation Division,Natwest Government Procurement Card,100029,1700.81
DFID,DFID,20/07/2010,Office Equipment,Western Asia and Stabilisation Division,Natwest Government Procurement Card,100029,158.51
DFID,DFID,20/07/2010,"Printing, Stationary & Postage",Western Asia and Stabilisation Division,Natwest Government Procurement Card,100029,57.04
DFID,DFID,20/07/2010,Professional Member Subscriptions,Western Asia and Stabilisation Division,Natwest Government Procurement Card,100029,125
DFID,DFID,20/07/2010,Staff Business Travel and Subsistence,Western Asia and Stabilisation Division,Natwest Government Procurement Card,100029,7123.56
DFID,DFID,20/07/2010,Staff training & Conferences,Western Asia and Stabilisation Division,Natwest Government Procurement Card,100029,125.25
DFID,DFID,20/07/2010,Vehicle Running Costs,Western Asia and Stabilisation Division,Natwest Government Procurement Card,100029,105.8
DFID,DFID,21/07/2010,Aid to civil society organisations / NGOs,Policy and Research Directorate,Triple Line Consulting Limited,400109647,375257.98
DFID,DFID,21/07/2010,Aid to international organisations,"Security & Humanitarian, Middle East, Caribbean & Overseas Territories Division",WHO (GENEVA),400109800,200000
DFID,DFID,21/07/2010,Technical & Advisory services,"Security & Humanitarian, Middle East, Caribbean & Overseas Territories Division",ADAM SMITH INTERNATIONAL  LTD,400109852,159640.95
DFID,DFID,21/07/2010,Software,Business Solutions Division Level,GOOGLE IRELAND LTD,400109877,27125
DFID,DFID,21/07/2010,Technical & Advisory services,West and Southern Africa,ADAM SMITH INTERNATIONAL  LTD,400109855,353826.46
DFID,DFID,21/07/2010,Technical & Advisory services,West and Southern Africa,ADAM SMITH INTERNATIONAL  LTD,400110188,454022.26
DFID,DFID,21/07/2010,Technical & Advisory services,West and Southern Africa,ADAM SMITH INTERNATIONAL  LTD,400110190,228597.16
DFID,DFID,21/07/2010,Technical & Advisory services,"Security & Humanitarian, Middle East, Caribbean & Overseas Territories Division",ADAM SMITH INTERNATIONAL  LTD,400109840,141051.4
DFID,DFID,21/07/2010,Technical & Advisory services,Communications Division,CHRISTIAN AID,400110291,433123.27
DFID,DFID,21/07/2010,Aid to civil society organisations / NGOs,Policy and Research Directorate,BOND,400109669,156795
DFID,DFID,21/07/2010,Aid to civil society organisations / NGOs,Policy and Research Directorate,TRADES UNION CONGRESS,400109714,300000
DFID,DFID,21/07/2010,Staff training & Conferences,Western Asia and Stabilisation Division,COFFEY INTERNATIONAL DEVELOPMENT LTD,400109801,27913.5
DFID,DFID,21/07/2010,Staff training & Conferences,Western Asia and Stabilisation Division,COFFEY INTERNATIONAL DEVELOPMENT LTD,400109801,32988.04
DFID,DFID,21/07/2010,Aid to civil society organisations / NGOs,Policy and Research Directorate,INASP,400109795,123684.21
DFID,DFID,21/07/2010,Aid to civil society organisations / NGOs,"Security & Humanitarian, Middle East, Caribbean & Overseas Territories Division",ACTIONAID,400109639,131396
DFID,DFID,21/07/2010,Technical & Advisory services,East and Central Africa,ADAM SMITH INTERNATIONAL  LTD,400109749,193680.96
DFID,DFID,21/07/2010,Technical & Advisory services,East and Central Africa,COFFEY INTERNATIONAL DEVELOPMENT LTD,400109803,47865
DFID,DFID,21/07/2010,Aid to international organisations,International Relations Division,COMMONWEALTH LOCAL GOVERNMENT FORUM,400109767,943117
DFID,DFID,21/07/2010,Technical & Advisory services,West and Southern Africa,International Monetary Fund (GBP),400109728,59677
DFID,DFID,22/07/2010,Aid to civil society organisations / NGOs,East and Central Africa,INTERNATIONAL INSTITUTE FOR ENVIRO,400109870,73845.56
DFID,DFID,22/07/2010,Aid to international organisations,East and Central Africa,UNDP CONTRIBUTIONS GBP,400109953,40000
DFID,DFID,22/07/2010,Aid to civil society organisations / NGOs,Asia Division,THE CROWN AGENTS,400109867,250000
DFID,DFID,22/07/2010,Technical & Advisory services,Asia Division,OPTIONS CONSULTANCY SERVICES LIMITED,400110026,82289.46
DFID,DFID,22/07/2010,Technical & Advisory services,Asia Division,Cambridge Education,400109820,36302.31
DFID,DFID,22/07/2010,Aid to civil society organisations / NGOs,Policy and Research Directorate,Triple Line Consulting Limited,400110034,352171.07
DFID,DFID,22/07/2010,Aid to civil society organisations / NGOs,"Security & Humanitarian, Middle East, Caribbean & Overseas Territories Division",Urgent Action Fund For Women's Human Rights (UAF),400109845,38789
DFID,DFID,22/07/2010,Aid to international organisations,Asia Division,Geneva Centre for the Democratic Control of Armed Forces,400110061,86687
DFID,DFID,22/07/2010,Aid to international organisations,East and Central Africa,UNDP CONTRIBUTIONS ACCOUNT,400110086,1750000
DFID,DFID,22/07/2010,Aid to international organisations,Policy and Research Directorate,WHO (GENEVA),400109982,30000
DFID,DFID,22/07/2010,Technical & Advisory services,Policy and Research Directorate,UNIVERSITY OF BIRMINGHAM,400109948,43066.82
DFID,DFID,22/07/2010,Technical & Advisory services,Policy and Research Directorate,UNIVERSITY OF BIRMINGHAM,400109948,76373.83
DFID,DFID,22/07/2010,Research & Development,Policy and Research Directorate,INSTITUTE OF DEV  STUDIES UNIVER,400110084,56990
DFID,DFID,22/07/2010,Technical & Advisory services,Policy and Research Directorate,LONDON SCHOOL OF ECONOMICS AND POLITICAL SCIENCE,400110731,502708.55
DFID,DFID,22/07/2010,Technical & Advisory services,Policy and Research Directorate,LONDON SCHOOL OF ECONOMICS AND POLITICAL SCIENCE,400110731,7080
DFID,DFID,22/07/2010,Technical & Advisory services,Policy and Research Directorate,LONDON SCHOOL OF ECONOMICS AND POLITICAL SCIENCE,400110731,1971.86
DFID,DFID,22/07/2010,Technical & Advisory services,Policy and Research Directorate,LONDON SCHOOL OF ECONOMICS AND POLITICAL SCIENCE,400110731,3173.58
DFID,DFID,22/07/2010,Technical & Advisory services,Policy and Research Directorate,LONDON SCHOOL OF ECONOMICS AND POLITICAL SCIENCE,400110731,11412.95
DFID,DFID,22/07/2010,Technical & Advisory services,Policy and Research Directorate,LONDON SCHOOL OF ECONOMICS AND POLITICAL SCIENCE,400110731,42905.62
DFID,DFID,22/07/2010,Technical & Advisory services,Policy and Research Directorate,LONDON SCHOOL OF ECONOMICS AND POLITICAL SCIENCE,400110731,46.19
DFID,DFID,22/07/2010,Aid to civil society organisations / NGOs,Policy and Research Directorate,LIVERPOOL SCHOOL OF TROPICAL MEDICINE,400110080,120436.89
DFID,DFID,22/07/2010,Aid to civil society organisations / NGOs,Policy and Research Directorate,LIVERPOOL SCHOOL OF TROPICAL MEDICINE,400110088,471723.73
DFID,DFID,22/07/2010,Research & Development,Policy and Research Directorate,LIVERPOOL SCHOOL OF TROPICAL MEDICINE,400110075,68314.95
DFID,DFID,22/07/2010,Research & Development,Policy and Research Directorate,LONDON SCHOOL OF HYGIENE AND TR,400110072,111522.3
DFID,DFID,22/07/2010,Emergency / Humanitarian Assistance,"Security & Humanitarian, Middle East, Caribbean & Overseas Territories Division",SAVE THE CHILDREN,400109943,50889
DFID,DFID,22/07/2010,Aid to international organisations,Asia Division,IBRD (HSBC)  C/O THE WORLD BANK,400109984,800000
DFID,DFID,22/07/2010,Aid to civil society organisations / NGOs,Communications Division,COMMONWEALTH BROADCASTING ASSOCIATIO,400110078,103651.25
DFID,DFID,22/07/2010,Aid to civil society organisations / NGOs,Communications Division,THE CROWN AGENTS,400109924,130911.71
DFID,DFID,22/07/2010,Aid to civil society organisations / NGOs,Communications Division,THE CROWN AGENTS,400109931,88191.17
DFID,DFID,22/07/2010,Aid to civil society organisations / NGOs,Communications Division,THE ONE WORLD BROADCASTING TRUST,400110071,49819
DFID,DFID,22/07/2010,Technical & Advisory services,Western Asia and Stabilisation Division,"McKinsey & Co, Inc UK",400109923,132775
DFID,DFID,22/07/2010,Aid to civil society organisations / NGOs,Policy and Research Directorate,BOND,400110033,156795
DFID,DFID,22/07/2010,Aid to civil society organisations / NGOs,Policy and Research Directorate,SAVE THE CHILDREN,400109950,1635000
DFID,DFID,22/07/2010,Aid to international organisations,Policy and Research Directorate,IBRD HSBC T,400109839,500000
DFID,DFID,22/07/2010,Aid to civil society organisations / NGOs,"Security & Humanitarian, Middle East, Caribbean & Overseas Territories Division",ALTUS GLOBAL ALLIANCE,400110004,138982
DFID,DFID,22/07/2010,Aid to civil society organisations / NGOs,East and Central Africa,LIVERPOOL SCHOOL OF TROPICAL MEDICINE,400109921,181461
DFID,DFID,22/07/2010,"Property Repairs, Maintenance & Alterations",East and Central Africa,DMS AFRICA,400110098,293134.85
DFID,DFID,22/07/2010,Aid to international organisations,East and Central Africa,The World Bank (Tanzania),400109999,1625000
DFID,DFID,22/07/2010,Aid to civil society organisations / NGOs,"Security & Humanitarian, Middle East, Caribbean & Overseas Territories Division",TCI Government,400110015,3600000
DFID,DFID,22/07/2010,Aid to civil society organisations / NGOs,Policy and Research Directorate,THE UNIVERSITY OF MANCHESTER,400110008,73143.37
DFID,DFID,22/07/2010,Technical & Advisory services,"Security & Humanitarian, Middle East, Caribbean & Overseas Territories Division",GRM INTERNATIONAL LTD,400110031,120888.66
DFID,DFID,22/07/2010,Aid to other bilateral donors,West and Southern Africa,GTZ GmBH Eschborn,400110074,48000
DFID,DFID,22/07/2010,Aid to other bilateral donors,West and Southern Africa,UNICEF,400110073,26381
DFID,DFID,23/07/2010,Emergency / Humanitarian Assistance,West and Southern Africa, UNICEF,400110228,1000000
DFID,DFID,23/07/2010,Aid to civil society organisations / NGOs,West and Southern Africa,CAFOD,400110296,184192
DFID,DFID,23/07/2010,Aid to international organisations,East and Central Africa,INFRASTRUCTURE CONSORTIUM FOR AFRICA,400110234,500000
DFID,DFID,23/07/2010,Technical & Advisory services,East and Central Africa,WSP INTERNATIONAL LIMITED,400110757,27847.89
DFID,DFID,23/07/2010,Technical & Advisory services,Asia Division,BMB MOTT  MACDONALD,400110301,671193.91
DFID,DFID,23/07/2010,FCO Post Account,International Relations Division,FOREIGN AND COMMONWEALTH OFFICE,400110285,3172.28
DFID,DFID,23/07/2010,Technical & Advisory services,"Security & Humanitarian, Middle East, Caribbean & Overseas Territories Division",COMMONWEALTH GAMES ASSOCIATION OF CANADA,400110555,65000
DFID,DFID,23/07/2010,FCO Post Account,Asia Division,FOREIGN AND COMMONWEALTH OFFICE,400110285,55.28
DFID,DFID,23/07/2010,Aid to international organisations,"Security & Humanitarian, Middle East, Caribbean & Overseas Territories Division",THE BRITISH RED CROSS SOCIETY,400110238,2530000
DFID,DFID,23/07/2010,Technical & Advisory services,West and Southern Africa,EFFECTIVE DEVELOPMENT GROUP (EDG),400110723,79841.33
DFID,DFID,23/07/2010,Research & Development,Policy and Research Directorate,INSTITUTE OF DEV  STUDIES UNIVER,400110576,80440
DFID,DFID,23/07/2010,Research & Development,Policy and Research Directorate,THE UNIVERSITY OF MANCHESTER,400110553,271440.83
DFID,DFID,23/07/2010,Technical & Advisory services,Policy and Research Directorate,HLSP LIMITED,400110901,47868.05
DFID,DFID,23/07/2010,Technical & Advisory services,Policy and Research Directorate,TROPICAL HEALTH EDUCATION TRUST,400110299,83288.31
DFID,DFID,23/07/2010,Accomodation costs,Human Resources Division,ROK CONSTRUCTION,400110546,34107.85
DFID,DFID,23/07/2010,Accomodation costs,Human Resources Division,ROK CONSTRUCTION,400110546,4804.59
DFID,DFID,23/07/2010,Accomodation costs,Human Resources Division,ROK CONSTRUCTION,400110546,503.1
DFID,DFID,23/07/2010,Technical & Advisory services,Asia Division,Futures Group International India Pvt Ltd,400110789,65437.14
DFID,DFID,23/07/2010,Technical & Advisory services,Asia Division,Futures Group International India Pvt Ltd,400110781,171124.1
DFID,DFID,23/07/2010,Technical & Advisory services,Asia Division,Futures Group International India Pvt Ltd,400110783,29320.25
DFID,DFID,23/07/2010,Technical & Advisory services,Asia Division,Futures Group International India Pvt Ltd,400110787,54568.29
DFID,DFID,23/07/2010,Technical & Advisory services,Asia Division,DELOITTE TOUCHE TOHMATSU INDIA PRIVA,400110146,37086.09
DFID,DFID,23/07/2010,Technical & Advisory services,"Security & Humanitarian, Middle East, Caribbean & Overseas Territories Division",ALLNATIVE  SERVICES,400110179,46108.13
DFID,DFID,23/07/2010,Technical & Advisory services,"Security & Humanitarian, Middle East, Caribbean & Overseas Territories Division",BRITISH COUNCIL,400110233,58641.63
DFID,DFID,23/07/2010,FCO Post Account,"Security & Humanitarian, Middle East, Caribbean & Overseas Territories Division",FOREIGN AND COMMONWEALTH OFFICE,400110198,54260.47
DFID,DFID,23/07/2010,FCO Post Account,"Security & Humanitarian, Middle East, Caribbean & Overseas Territories Division",FOREIGN AND COMMONWEALTH OFFICE,400110198,8706.15
DFID,DFID,23/07/2010,Technical & Advisory services,International Relations Division,ECOTEC RESEARCH AND CONSULTING LTD,400110565,106311
DFID,DFID,23/07/2010,FCO Post Account,International Relations Division,FOREIGN AND COMMONWEALTH OFFICE,400110285,29.42
DFID,DFID,23/07/2010,Technical & Advisory services,West and Southern Africa,HTSPE LTD,400110259,289788.79
DFID,DFID,23/07/2010,Technical & Advisory services,West and Southern Africa,Society for Family  Health,400110302,1164594.17
DFID,DFID,23/07/2010,Medical & Health Supplies/Services,West and Southern Africa,THE CROWN AGENTS,400110475,48639.55
DFID,DFID,23/07/2010,Purchase of Vehicles,West and Southern Africa,THE CROWN AGENTS,400110475,49093.09
DFID,DFID,23/07/2010,Technical & Advisory services,"Security & Humanitarian, Middle East, Caribbean & Overseas Territories Division",UNOPS (ACCESS SUPPORT TEAM PROJECT),400110240,283000
DFID,DFID,23/07/2010,Technical & Advisory services,Western Asia and Stabilisation Division,HLSP LIMITED,400110263,104403.78
DFID,DFID,23/07/2010,Technical & Advisory services,Western Asia and Stabilisation Division,OXFORD POLICY MANAGEMENT,400110542,77737.98
DFID,DFID,23/07/2010,Accomodation costs,Human Resources Division,PLANNED MAINTENANCE ENGINEERING LTD,400110529,30576.71
DFID,DFID,23/07/2010,Aid to civil society organisations / NGOs,Policy and Research Directorate,ISLAMIC RELIEF,400110298,410000
DFID,DFID,23/07/2010,Aid to civil society organisations / NGOs,West and Southern Africa,African Security Sector Network (ASSN),400110236,177070.68
DFID,DFID,23/07/2010,FCO Post Account,International Relations Division,FOREIGN AND COMMONWEALTH OFFICE,400110285,700.32
DFID,DFID,23/07/2010,Aid to civil society organisations / NGOs,Policy and Research Directorate,SCHOOL OF ORIENTAL & AFRICAN STUDIES,400110237,55861.85
DFID,DFID,23/07/2010,Technical & Advisory services,East and Central Africa,ADAM SMITH INTERNATIONAL  LTD,400110242,100242.89
DFID,DFID,26/07/2010,Technical & Advisory services,East and Central Africa,KPMG EAST AFRICA LTD,400111135,114694
DFID,DFID,26/07/2010,Research & Development,Policy and Research Directorate,NRI LTD.,400111017,592809.92
DFID,DFID,26/07/2010,FCO Post Account,Western Asia and Stabilisation Division,FOREIGN AND COMMONWEALTH OFFICE,400110436,606.57
DFID,DFID,26/07/2010,FCO Post Account,Western Asia and Stabilisation Division,FOREIGN AND COMMONWEALTH OFFICE,400110490,63
DFID,DFID,26/07/2010,Aid to civil society organisations / NGOs,Asia Division,BRAC,400110507,5000000
DFID,DFID,26/07/2010,Technical & Advisory services,Asia Division,MAXWELL STAMP PLC,400110923,126590.77
DFID,DFID,26/07/2010,Aid to civil society organisations / NGOs,Asia Division,MAXWELL STAMP PLC,400110922,641654.36
DFID,DFID,26/07/2010,FCO Post Account,International Relations Division,FOREIGN AND COMMONWEALTH OFFICE,400110518,62083.24
DFID,DFID,26/07/2010,Technical & Advisory services,Asia Division,BRITISH COUNCIL,400111116,103425.03
DFID,DFID,26/07/2010,Aid to civil society organisations / NGOs,"Security & Humanitarian, Middle East, Caribbean & Overseas Territories Division",HSRG School for International Studies,400110499,132741.69
DFID,DFID,26/07/2010,FCO Post Account,Asia Division,FOREIGN AND COMMONWEALTH OFFICE,400110436,221.06
DFID,DFID,26/07/2010,FCO Post Account,Asia Division,FOREIGN AND COMMONWEALTH OFFICE,400110490,109.49
DFID,DFID,26/07/2010,FCO Post Account,Asia Division,FOREIGN AND COMMONWEALTH OFFICE,400110436,621.64
DFID,DFID,26/07/2010,FCO Post Account,Asia Division,FOREIGN AND COMMONWEALTH OFFICE,400110490,1077.51
DFID,DFID,26/07/2010,FCO Post Account,Asia Division,FOREIGN AND COMMONWEALTH OFFICE,400110436,295.73
DFID,DFID,26/07/2010,FCO Post Account,Asia Division,FOREIGN AND COMMONWEALTH OFFICE,400110490,437.35
DFID,DFID,26/07/2010,FCO Post Account,West and Southern Africa,FOREIGN AND COMMONWEALTH OFFICE,400110436,826.54
DFID,DFID,26/07/2010,FCO Post Account,Asia Division,FOREIGN AND COMMONWEALTH OFFICE,400110436,2650.13
DFID,DFID,26/07/2010,FCO Post Account,Asia Division,FOREIGN AND COMMONWEALTH OFFICE,400110490,748.46
DFID,DFID,26/07/2010,FCO Post Account,East and Central Africa,FOREIGN AND COMMONWEALTH OFFICE,400110490,287.64
DFID,DFID,26/07/2010,FCO Post Account,West and Southern Africa,FOREIGN AND COMMONWEALTH OFFICE,400110436,5415.12
DFID,DFID,26/07/2010,FCO Post Account,West and Southern Africa,FOREIGN AND COMMONWEALTH OFFICE,400110490,3330.92
DFID,DFID,26/07/2010,FCO Post Account,East and Central Africa,FOREIGN AND COMMONWEALTH OFFICE,400110490,124.88
DFID,DFID,26/07/2010,FCO Post Account,West and Southern Africa,FOREIGN AND COMMONWEALTH OFFICE,400110436,361.41
DFID,DFID,26/07/2010,FCO Post Account,West and Southern Africa,FOREIGN AND COMMONWEALTH OFFICE,400110490,12506.26
DFID,DFID,26/07/2010,FCO Post Account,Asia Division,FOREIGN AND COMMONWEALTH OFFICE,400110436,293.64
DFID,DFID,26/07/2010,FCO Post Account,East and Central Africa,FOREIGN AND COMMONWEALTH OFFICE,400110436,7063.37
DFID,DFID,26/07/2010,FCO Post Account,East and Central Africa,FOREIGN AND COMMONWEALTH OFFICE,400110490,19381.5
DFID,DFID,26/07/2010,FCO Post Account,East and Central Africa,FOREIGN AND COMMONWEALTH OFFICE,400110436,324.72
DFID,DFID,26/07/2010,FCO Post Account,East and Central Africa,FOREIGN AND COMMONWEALTH OFFICE,400110490,159
DFID,DFID,26/07/2010,FCO Post Account,East and Central Africa,FOREIGN AND COMMONWEALTH OFFICE,400110490,3647.92
DFID,DFID,26/07/2010,Aid to other bilateral donors,Evaluation Department, IOB (Ministry of Foreign Affairs),400110552,44500
DFID,DFID,26/07/2010,Technical & Advisory services,West and Southern Africa,Innovations for Poverty Action,400110856,50500
DFID,DFID,26/07/2010,Aid to civil society organisations / NGOs,Policy and Research Directorate,KPMG DEVELOPMENT SERVICE,400110523,2089618.56
DFID,DFID,26/07/2010,Research & Development,Policy and Research Directorate,INSTITUTE OF DEV  STUDIES UNIVER,400111103,87099
DFID,DFID,26/07/2010,Research & Development,Policy and Research Directorate,LEONARD CHESHIRE DISABILITY,400111083,145160
DFID,DFID,26/07/2010,Research & Development,Policy and Research Directorate,LEONARD CHESHIRE DISABILITY,400111085,39511
DFID,DFID,26/07/2010,FCO Post Account,Human Resources Division,FOREIGN AND COMMONWEALTH OFFICE,400110436,141.85
DFID,DFID,26/07/2010,Research & Development,Policy and Research Directorate,INSTITUTE OF DEV  STUDIES UNIVER,400110896,121731.55
DFID,DFID,26/07/2010,Technical & Advisory services,Asia Division,NATURAL RESOURCES INTERN,400110927,89799.31
DFID,DFID,26/07/2010,Technical & Advisory services,East and Central Africa,COFFEY INTERNATIONAL DEVELOPMENT LTD,400110880,73678.2
DFID,DFID,26/07/2010,Aid to civil society organisations / NGOs,West and Southern Africa,Catholic Commission for Justice and,400110550,217331.54
DFID,DFID,26/07/2010,FCO Post Account,"Security & Humanitarian, Middle East, Caribbean & Overseas Territories Division",FOREIGN AND COMMONWEALTH OFFICE,400110436,3359.61
DFID,DFID,26/07/2010,FCO Post Account,"Security & Humanitarian, Middle East, Caribbean & Overseas Territories Division",FOREIGN AND COMMONWEALTH OFFICE,400110490,869.73
DFID,DFID,26/07/2010,Aid to civil society organisations / NGOs,Asia Division,International Development Enterprise - Nepal,400110572,314636
DFID,DFID,26/07/2010,Medical & Health Supplies/Services,West and Southern Africa,THE CROWN AGENTS,400110906,706008.42
DFID,DFID,26/07/2010,Emergency / Humanitarian Assistance,Western Asia and Stabilisation Division,THE CROWN AGENTS,400109888,205700.56
DFID,DFID,26/07/2010,Technical & Advisory services,Policy and Research Directorate,WRENmedia,400110933,25621.23
DFID,DFID,26/07/2010,Aid to civil society organisations / NGOs,West and Southern Africa,ALAFA,400110537,268481
DFID,DFID,26/07/2010,FCO Post Account,Western Asia and Stabilisation Division,FOREIGN AND COMMONWEALTH OFFICE,400110490,1025.13
DFID,DFID,26/07/2010,Aid to partner government,West and Southern Africa,THE CROWN AGENTS,400110908,400000
DFID,DFID,27/07/2010,Technical & Advisory services,Asia Division,BMB MOTT  MACDONALD,400111361,59946.82
DFID,DFID,27/07/2010,Aid to civil society organisations / NGOs,East and Central Africa,REFUGEE EDUCATION TRUST,400110711,453336.7
DFID,DFID,27/07/2010,Aid to international organisations,International Relations Division,ORGANISATION FOR ECONOMIC CO-OP & DE,400110895,183750
DFID,DFID,27/07/2010,Aid to civil society organisations / NGOs,Policy and Research Directorate,OVERSEAS DEVELOPMENT INSTITUTE,400111319,155396.03
DFID,DFID,27/07/2010,Technical & Advisory services,Policy and Research Directorate,Crown Agents Bank,400111316,730979
DFID,DFID,27/07/2010,Technical & Advisory services,Policy and Research Directorate,LIVERPOOL SCHOOL OF TROPICAL MEDICINE,400111352,36108.66
DFID,DFID,27/07/2010,Aid to civil society organisations / NGOs,"Security & Humanitarian, Middle East, Caribbean & Overseas Territories Division",CONCERN WORLDWIDE,400110792,111527
DFID,DFID,27/07/2010,Aid to civil society organisations / NGOs,"Security & Humanitarian, Middle East, Caribbean & Overseas Territories Division",SAVE THE CHILDREN UK,400110733,39032.1
DFID,DFID,27/07/2010,Technical & Advisory services,Asia Division,INFRASTRUCTURE PROFESSIONALS ENTERPRISE,400111141,33820.19
DFID,DFID,27/07/2010,Technical & Advisory services,Asia Division,INFRASTRUCTURE PROFESSIONALS ENTERPRISE,400111144,67639.27
DFID,DFID,27/07/2010,Aid to civil society organisations / NGOs,West and Southern Africa,Malawi Red Cross Society,400110899,87564
DFID,DFID,27/07/2010,Aid to civil society organisations / NGOs,Asia Division,RURAL RECONSTRUCTION NEPAL,400110837,100283
DFID,DFID,27/07/2010,Aid to civil society organisations / NGOs,International Relations Division,ECDPM (Euro Account),400110730,63000
DFID,DFID,27/07/2010,Aid to civil society organisations / NGOs,Communications Division,THE CROWN AGENTS,400111318,92032.67
DFID,DFID,27/07/2010,Aid to civil society organisations / NGOs,Communications Division,VSO,400110776,210302
DFID,DFID,27/07/2010,Technical & Advisory services,Western Asia and Stabilisation Division,THE CROWN AGENTS,400111317,58495.56
DFID,DFID,27/07/2010,Aid to international organisations,International Finance Division,SG HAMBROS TRUST COMPANY LIMITED,400110777,625000
DFID,DFID,27/07/2010,Aid to international organisations,International Finance Division,SG HAMBROS TRUST COMPANY LIMITED,400110860,1001150
DFID,DFID,27/07/2010,Aid to civil society organisations / NGOs,West and Southern Africa,FinMark  TRUST,400110886,229383.01
DFID,DFID,27/07/2010,Aid to civil society organisations / NGOs,East and Central Africa,GOAL,400110875,322195
DFID,DFID,27/07/2010,Aid to civil society organisations / NGOs,Policy and Research Directorate,ECDPM (Euro Account),400110739,125550
DFID,DFID,27/07/2010,Aid to civil society organisations / NGOs,East and Central Africa,Uganda Local Governments Association,400110869,93544.85
DFID,DFID,27/07/2010,Aid to international organisations,West and Southern Africa, UNICEF,400110898,3900000
DFID,DFID,28/07/2010,Aid to civil society organisations / NGOs,Policy and Research Directorate,PROFOREST,400111306,31213.68
DFID,DFID,28/07/2010,Technical & Advisory services,"Security & Humanitarian, Middle East, Caribbean & Overseas Territories Division",PA CONSULTING GROUP,400111111,69765.55
DFID,DFID,28/07/2010,Aid to civil society organisations / NGOs,East and Central Africa,International Institute for Environment and Development (IIED),400111082,27800
DFID,DFID,28/07/2010,Aid to civil society organisations / NGOs,Finance and Corporate Performance Division,CMI MICHELSEN INSTITUTE,400111012,33333
DFID,DFID,28/07/2010,Accomodation costs,West and Southern Africa,GQ Chemicals,400112122,80848.7
DFID,DFID,28/07/2010,Accomodation costs,West and Southern Africa,GQ Chemicals,400112122,98815.07
DFID,DFID,28/07/2010,Aid to civil society organisations / NGOs,Policy and Research Directorate,AGA KHAN FOUNDATION (UK),400111131,148750
DFID,DFID,28/07/2010,Aid to civil society organisations / NGOs,East and Central Africa,Medecins du Monde UK International Funds,400111105,128779
DFID,DFID,28/07/2010,Technical & Advisory services,East and Central Africa,SOCIAL DEVELOPMENT DIRECT LTD,400111120,28899.85
DFID,DFID,29/07/2010,FCO Post Account,Western Asia and Stabilisation Division,FOREIGN AND COMMONWEALTH OFFICE,400111315,573.2
DFID,DFID,29/07/2010,Technical & Advisory services,International Relations Division,PKF (UK) LLP,400111321,150884.01
DFID,DFID,29/07/2010,Aid to civil society organisations / NGOs,East and Central Africa,La Benevolencija,400111350,58864
DFID,DFID,29/07/2010,FCO Post Account,Policy and Research Directorate,FOREIGN AND COMMONWEALTH OFFICE,400111315,1514.66
DFID,DFID,29/07/2010,Technical & Advisory services,Policy and Research Directorate,AFRICAN CENTRE FOR TECHNOLOGY STUDIES,400111530,165108
DFID,DFID,29/07/2010,FCO Post Account,Asia Division,FOREIGN AND COMMONWEALTH OFFICE,400111315,5211.63
DFID,DFID,29/07/2010,FCO Post Account,Asia Division,FOREIGN AND COMMONWEALTH OFFICE,400111315,1328.47
DFID,DFID,29/07/2010,FCO Post Account,Asia Division,FOREIGN AND COMMONWEALTH OFFICE,400111315,15030.08
DFID,DFID,29/07/2010,FCO Post Account,West and Southern Africa,FOREIGN AND COMMONWEALTH OFFICE,400111315,593.65
DFID,DFID,29/07/2010,FCO Post Account,East and Central Africa,FOREIGN AND COMMONWEALTH OFFICE,400111315,363.34
DFID,DFID,29/07/2010,FCO Post Account,Asia Division,FOREIGN AND COMMONWEALTH OFFICE,400111315,4419.98
DFID,DFID,29/07/2010,FCO Post Account,West and Southern Africa,FOREIGN AND COMMONWEALTH OFFICE,400111315,3313.09
DFID,DFID,29/07/2010,FCO Post Account,East and Central Africa,FOREIGN AND COMMONWEALTH OFFICE,400111315,423.45
DFID,DFID,29/07/2010,FCO Post Account,West and Southern Africa,FOREIGN AND COMMONWEALTH OFFICE,400111315,7868.22
DFID,DFID,29/07/2010,FCO Post Account,Asia Division,FOREIGN AND COMMONWEALTH OFFICE,400111315,250.32
DFID,DFID,29/07/2010,FCO Post Account,East and Central Africa,FOREIGN AND COMMONWEALTH OFFICE,400111315,23461.42
DFID,DFID,29/07/2010,FCO Post Account,East and Central Africa,FOREIGN AND COMMONWEALTH OFFICE,400111315,121.65
DFID,DFID,29/07/2010,Technical & Advisory services,East and Central Africa,ELECTORAL REFORM INTERNATIONAL SERVI,400111524,57644.6
DFID,DFID,29/07/2010,Research & Development,Policy and Research Directorate,UNIVERSITY OF BIRMINGHAM,400111537,139132.92
DFID,DFID,29/07/2010,Technical & Advisory services,Policy and Research Directorate,Crown Agents Bank,400111480,1003602.08
DFID,DFID,29/07/2010,Technical & Advisory services,Asia Division,CARE INTERNATIONAL,400111574,30111.9
DFID,DFID,29/07/2010,Technical & Advisory services,Asia Division,PRICEWATERHOUSE COOPERS PRIVATE LIMI,400111200,27070.82
DFID,DFID,29/07/2010,FCO Post Account,Business Solutions Division Level,FOREIGN AND COMMONWEALTH OFFICE,400111315,5157.56
DFID,DFID,29/07/2010,FCO Post Account,Internal Audit,FOREIGN AND COMMONWEALTH OFFICE,400111315,1606.75
DFID,DFID,29/07/2010,Technical & Advisory services,"Security & Humanitarian, Middle East, Caribbean & Overseas Territories Division",Crown Agents Bank,400111480,730979
DFID,DFID,29/07/2010,Communications,Business Solutions Division Level,OGC BUYING SOLUTIONS,400111431,155191.46
DFID,DFID,29/07/2010,FCO Post Account,"Security & Humanitarian, Middle East, Caribbean & Overseas Territories Division",FOREIGN AND COMMONWEALTH OFFICE,400111315,36.87
DFID,DFID,29/07/2010,FCO Post Account,"Security & Humanitarian, Middle East, Caribbean & Overseas Territories Division",FOREIGN AND COMMONWEALTH OFFICE,400111315,4391.65
DFID,DFID,29/07/2010,Technical & Advisory services,Asia Division,RTI INTERNATIONAL,400111532,128970.89
DFID,DFID,29/07/2010,Technical & Advisory services,West and Southern Africa,COFFEY INTERNATIONAL DEVELOPMENT LTD,400111476,226119.3
DFID,DFID,29/07/2010,"Property Repairs, Maintenance & Alterations","Security & Humanitarian, Middle East, Caribbean & Overseas Territories Division",TURNER & TOWNSEND,400111535,60784.68
DFID,DFID,29/07/2010,Aid to civil society organisations / NGOs,Policy and Research Directorate,CARE INTERNATIONAL,400111354,1518750
DFID,DFID,29/07/2010,Technical & Advisory services,Western Asia and Stabilisation Division,THE CROWN AGENTS,400111488,29412
DFID,DFID,29/07/2010,Aid to civil society organisations / NGOs,Policy and Research Directorate,BBC WORLD SERVICE TRUST,400111395,70336
DFID,DFID,29/07/2010,Aid to civil society organisations / NGOs,"Security & Humanitarian, Middle East, Caribbean & Overseas Territories Division",THE HALO TRUST,400111365,737652
DFID,DFID,29/07/2010,Technical & Advisory services,International Relations Division,Deposit Insurance Agency - Treasury Project,400111531,28411.83
DFID,DFID,29/07/2010,Technical & Advisory services,West and Southern Africa,CARE INTERNATIONAL UK,400111514,183008.98
DFID,DFID,29/07/2010,Technical & Advisory services,West and Southern Africa,NATHAN EME LTD,400111497,24383.83
DFID,DFID,29/07/2010,Technical & Advisory services,West and Southern Africa,NATHAN EME LTD,400111497,34695.16
DFID,DFID,29/07/2010,Aid to civil society organisations / NGOs,West and Southern Africa,University of Cape Town,400111323,559662.96
DFID,DFID,29/07/2010,Aid to civil society organisations / NGOs,West and Southern Africa,FinMark  TRUST,400111310,282904.15
DFID,DFID,29/07/2010,FCO Post Account,Western Asia and Stabilisation Division,FOREIGN AND COMMONWEALTH OFFICE,400111315,463.27
DFID,DFID,29/07/2010,Aid to civil society organisations / NGOs,East and Central Africa,The Carter Center,400111351,73199
DFID,DFID,30/07/2010,Aid to civil society organisations / NGOs,Policy and Research Directorate,AATF,400111461,281812.15
DFID,DFID,30/07/2010,Technical & Advisory services,Asia Division,CAMBRIDGE EDUCATION LTD,400111691,35801.3
DFID,DFID,30/07/2010,Aid to civil society organisations / NGOs,Policy and Research Directorate,Triple Line Consulting Limited,400111451,241940.98
DFID,DFID,30/07/2010,Technical & Advisory services,Policy and Research Directorate,LOUGHBOROUGH UNIVERSITY,400111715,40000
DFID,DFID,30/07/2010,Aid to international organisations,Asia Division,IBRD HSBC T,400111519,925000
DFID,DFID,30/07/2010,Aid to civil society organisations / NGOs,International Relations Division,EAST WEST MANAGEMENT INSTITUTE,400111439,27126
DFID,DFID,30/07/2010,Aid to international organisations,West and Southern Africa, UNICEF,400111504,3000000
DFID,DFID,30/07/2010,Aid to civil society organisations / NGOs,Policy and Research Directorate,INTERNATIONAL BUSINESS LEADERS FORUM,400111608,48696
DFID,DFID,30/07/2010,Aid to civil society organisations / NGOs,Policy and Research Directorate,INTERNATIONAL BUSINESS LEADERS FORUM,400111692,55304
DFID,DFID,30/07/2010,Aid to civil society organisations / NGOs,Policy and Research Directorate,NATURAL RESOURCES INSTITUTE,400111483,44460.19
DFID,DFID,30/07/2010,Technical & Advisory services,Asia Division,CARE INTERNATIONAL,400111578,35902.65
DFID,DFID,30/07/2010,Technical & Advisory services,Asia Division,Futures Group International India Pvt Ltd,400111460,171124.1
DFID,DFID,30/07/2010,Technical & Advisory services,Asia Division,Futures Group International India Pvt Ltd,400111464,29320.25
DFID,DFID,30/07/2010,Technical & Advisory services,Asia Division,Futures Group International India Pvt Ltd,400111466,54568.29
DFID,DFID,30/07/2010,Aid to civil society organisations / NGOs,Communications Division,INTERN DEVEL EDUC ASSOC OF SCOTLAND,400111475,96867
DFID,DFID,30/07/2010,Technical & Advisory services,East and Central Africa,ADAM SMITH INTERNATIONAL  LTD,400111649,136076.64
DFID,DFID,30/07/2010,Technical & Advisory services,East and Central Africa,BMB  MOTT  MACDONALD,400111462,886031
DFID,DFID,30/07/2010,Technical & Advisory services,"Security & Humanitarian, Middle East, Caribbean & Overseas Territories Division",COFFEY INTERNATIONAL DEVELOPMENT LTD,400111583,4254.96
DFID,DFID,30/07/2010,Technical & Advisory services,"Security & Humanitarian, Middle East, Caribbean & Overseas Territories Division",COFFEY INTERNATIONAL DEVELOPMENT LTD,400111583,30175.11
DFID,DFID,30/07/2010,Aid to civil society organisations / NGOs,Policy and Research Directorate,INTERNATIONAL INSTITUTE FOR SUSTAINABLE DEVELOPMENT,400111471,41740
DFID,DFID,30/07/2010,Aid to international organisations,Policy and Research Directorate,INTERNATIONAL TRADE CENTRE,400111481,1370419
DFID,DFID,30/07/2010,Technical & Advisory services,East and Central Africa,MAXWELL STAMP PLC,400111667,161815.71
